Workbook

Sheet TOTALS-LS-BKP (hidden)
A1: MID-DAY MEALS PROGRAMME
A2: MANDAL | C2: =MANDAL -> XYZ | J2: SCHOOL | L2: =SCHOOL -> ZPHS ABC | U2: MONTH | X2: =MONTH -> 43831 | AA2: =MONTH -> 43831
A3: DATE | B3: ENROLLED | F3: PRSENT | J3: MDM TAKEN | N3: UPS RICE | Q3: HS RICE | T3: AMOUNT | X3: RICE RECEIVED | AA3: MENU
B4: UPS | C4: HS | D4: TOTAL | F4: UPS | G4: HS | H4: TOTAL | J4: UPS | K4: HS | L4: TOTAL | N4: GIVEN | O4: BALANCE | Q4: GIVEN | R4: BALANCE | T4: UPS | U4: HS | V4: TOTAL | X4: UPS | Y4: HS | Z4: TOTAL
A5: LAST MONTH RICE BALANCE -------> | O5: ='RICE ACCOUNT'!$B$6 -> 120 | R5: ='RICE ACCOUNT'!$C$6 -> 110 | T5: @6.00
A6: 1 | B6: =#REF! ->  | C6: ='9-10-MDM&EGG'!C5 -> 155 | D6: =SUM(B6:C6) ->  | F6: =#REF! ->  | G6: ='9-10-MDM&EGG'!D5 -> 0 | H6: =SUM(F6:G6) ->  | J6: =#REF! ->  | K6: ='9-10-MDM&EGG'!E5 -> 0 | L6: =SUM(J6:K6) ->  | N6: =J6*150/1000 ->  | O6: ='RICE ACCOUNT'!N6 -> 120 | Q6: =K6*150/1000 -> 0 | R6: ='RICE ACCOUNT'!O6 -> 110 | T6: =J6*6 ->  | U6: =K6*6 -> 0 | V6: =SUM(T6:U6) ->  | X6: ='RICE ACCOUNT'!F6 -> 0 | Y6: ='RICE ACCOUNT'!G6 -> 0 | Z6: =SUM(X6:Y6) -> 0
A7: a | B7: =#REF! ->  | C7: ='9-10-MDM&EGG'!C6 -> 155 | D7: =SUM(B7:C7) ->  | F7: =#REF! ->  | G7: ='9-10-MDM&EGG'!D6 -> 0 | H7: =SUM(F7:G7) ->  | J7: =#REF! ->  | K7: ='9-10-MDM&EGG'!E6 -> 0 | L7: =SUM(J7:K7) ->  | O7: ='RICE ACCOUNT'!N7 -> 120 | Q7: 0 | R7: ='RICE ACCOUNT'!O7 -> 110 | T7: =J7*6 ->  | U7: 0 | V7: =SUM(T7:U7) ->  | X7: ='RICE ACCOUNT'!F7 -> 0 | Y7: ='RICE ACCOUNT'!G7 -> 0 | Z7: =SUM(X7:Y7) -> 0
A8: 3 | B8: =#REF! ->  | C8: ='9-10-MDM&EGG'!C7 -> 155 | F8: =#REF! ->  | G8: ='9-10-MDM&EGG'!D7 -> 0 | J8: =#REF! ->  | K8: ='9-10-MDM&EGG'!E7 -> 0 | O8: ='RICE ACCOUNT'!N8 -> 120 | Q8: 0 | R8: ='RICE ACCOUNT'!O8 -> 110 | U8: 0 | X8: ='RICE ACCOUNT'!F8 -> 0 | Y8: ='RICE ACCOUNT'!G8 -> 0 | Z8: 0
A9: 4 | B9: =#REF! ->  | C9: ='9-10-MDM&EGG'!C8 -> 155 | F9: =#REF! ->  | G9: ='9-10-MDM&EGG'!D8 -> 0 | J9: =#REF! ->  | K9: ='9-10-MDM&EGG'!E8 -> 0 | O9: ='RICE ACCOUNT'!N9 -> 120 | Q9: 0 | R9: ='RICE ACCOUNT'!O9 -> 110 | U9: 0 | X9: ='RICE ACCOUNT'!F9 -> 0 | Y9: ='RICE ACCOUNT'!G9 -> 0 | Z9: 0
A10: 5 | B10: =#REF! ->  | C10: ='9-10-MDM&EGG'!C9 -> 155 | F10: =#REF! ->  | G10: ='9-10-MDM&EGG'!D9 -> 0 | J10: =#REF! ->  | K10: ='9-10-MDM&EGG'!E9 -> 0 | O10: ='RICE ACCOUNT'!N10 -> 120 | Q10: 0 | R10: ='RICE ACCOUNT'!O10 -> 110 | U10: 0 | X10: ='RICE ACCOUNT'!F10 -> 0 | Y10: ='RICE ACCOUNT'!G10 -> 0 | Z10: 0
A11: 6 | B11: =#REF! ->  | C11: ='9-10-MDM&EGG'!C10 -> 155 | F11: =#REF! ->  | G11: ='9-10-MDM&EGG'!D10 -> 0 | J11: =#REF! ->  | K11: ='9-10-MDM&EGG'!E10 -> 0 | O11: ='RICE ACCOUNT'!N11 -> 120 | Q11: 0 | R11: ='RICE ACCOUNT'!O11 -> 110 | U11: 0 | X11: ='RICE ACCOUNT'!F11 -> 0 | Y11: ='RICE ACCOUNT'!G11 -> 0 | Z11: 0
A12: 7 | B12: =#REF! ->  | C12: ='9-10-MDM&EGG'!C11 -> 155 | F12: =#REF! ->  | G12: ='9-10-MDM&EGG'!D11 -> 0 | J12: =#REF! ->  | K12: ='9-10-MDM&EGG'!E11 -> 0 | O12: ='RICE ACCOUNT'!N12 -> 120 | Q12: 0 | R12: ='RICE ACCOUNT'!O12 -> 110 | U12: 0 | X12: ='RICE ACCOUNT'!F12 -> 0 | Y12: ='RICE ACCOUNT'!G12 -> 0 | Z12: 0
A13: 8 | B13: =#REF! ->  | C13: ='9-10-MDM&EGG'!C12 -> 155 | F13: =#REF! ->  | G13: ='9-10-MDM&EGG'!D12 -> 0 | J13: =#REF! ->  | K13: ='9-10-MDM&EGG'!E12 -> 0 | O13: ='RICE ACCOUNT'!N13 -> 120 | Q13: 0 | R13: ='RICE ACCOUNT'!O13 -> 110 | U13: 0 | X13: ='RICE ACCOUNT'!F13 -> 0 | Y13: ='RICE ACCOUNT'!G13 -> 0 | Z13: 0
A14: 9 | B14: =#REF! ->  | C14: ='9-10-MDM&EGG'!C13 -> 155 | F14: =#REF! ->  | G14: ='9-10-MDM&EGG'!D13 -> 0 | J14: =#REF! ->  | K14: ='9-10-MDM&EGG'!E13 -> 0 | O14: ='RICE ACCOUNT'!N14 -> 120 | Q14: 0 | R14: ='RICE ACCOUNT'!O14 -> 110 | U14: 0 | X14: ='RICE ACCOUNT'!F14 -> 0 | Y14: ='RICE ACCOUNT'!G14 -> 0 | Z14: 0
A15: 10 | B15: =#REF! ->  | C15: ='9-10-MDM&EGG'!C14 -> 155 | F15: =#REF! ->  | G15: ='9-10-MDM&EGG'!D14 -> 0 | J15: =#REF! ->  | K15: ='9-10-MDM&EGG'!E14 -> 0 | O15: ='RICE ACCOUNT'!N15 -> 120 | Q15: 0 | R15: ='RICE ACCOUNT'!O15 -> 110 | U15: 0 | X15: ='RICE ACCOUNT'!F15 -> 0 | Y15: ='RICE ACCOUNT'!G15 -> 0 | Z15: 0
A16: 11 | B16: =#REF! ->  | C16: ='9-10-MDM&EGG'!C15 -> 155 | F16: =#REF! ->  | G16: ='9-10-MDM&EGG'!D15 -> 0 | J16: =#REF! ->  | K16: ='9-10-MDM&EGG'!E15 -> 0 | O16: ='RICE ACCOUNT'!N16 -> 120 | Q16: 0 | R16: ='RICE ACCOUNT'!O16 -> 110 | U16: 0 | X16: ='RICE ACCOUNT'!F16 -> 0 | Y16: ='RICE ACCOUNT'!G16 -> 0 | Z16: 0
A17: 12 | B17: =#REF! ->  | C17: ='9-10-MDM&EGG'!C16 -> 155 | F17: =#REF! ->  | G17: ='9-10-MDM&EGG'!D16 -> 0 | J17: =#REF! ->  | K17: ='9-10-MDM&EGG'!E16 -> 0 | O17: ='RICE ACCOUNT'!N17 -> 120 | Q17: 0 | R17: ='RICE ACCOUNT'!O17 -> 110 | U17: 0 | X17: ='RICE ACCOUNT'!F17 -> 0 | Y17: ='RICE ACCOUNT'!G17 -> 0 | Z17: 0
A18: 13 | B18: =#REF! ->  | C18: ='9-10-MDM&EGG'!C17 -> 155 | F18: =#REF! ->  | G18: ='9-10-MDM&EGG'!D17 -> 0 | J18: =#REF! ->  | K18: ='9-10-MDM&EGG'!E17 -> 0 | O18: ='RICE ACCOUNT'!N18 -> 120 | Q18: 0 | R18: ='RICE ACCOUNT'!O18 -> 110 | U18: 0 | X18: ='RICE ACCOUNT'!F18 -> 0 | Y18: ='RICE ACCOUNT'!G18 -> 0 | Z18: 0
A19: 14 | B19: =#REF! ->  | C19: ='9-10-MDM&EGG'!C18 -> 155 | F19: =#REF! ->  | G19: ='9-10-MDM&EGG'!D18 -> 0 | J19: =#REF! ->  | K19: ='9-10-MDM&EGG'!E18 -> 0 | O19: ='RICE ACCOUNT'!N19 -> 120 | Q19: 0 | R19: ='RICE ACCOUNT'!O19 -> 110 | U19: 0 | X19: ='RICE ACCOUNT'!F19 -> 0 | Y19: ='RICE ACCOUNT'!G19 -> 0 | Z19: 0
A20: 15 | B20: =#REF! ->  | C20: ='9-10-MDM&EGG'!C19 -> 155 | F20: =#REF! ->  | G20: ='9-10-MDM&EGG'!D19 -> 0 | J20: =#REF! ->  | K20: ='9-10-MDM&EGG'!E19 -> 0 | O20: ='RICE ACCOUNT'!N20 -> 120 | Q20: 0 | R20: ='RICE ACCOUNT'!O20 -> 110 | U20: 0 | X20: ='RICE ACCOUNT'!F20 -> 0 | Y20: ='RICE ACCOUNT'!G20 -> 0 | Z20: 0
A21: 16 | B21: =#REF! ->  | C21: ='9-10-MDM&EGG'!C20 -> 166 | F21: =#REF! ->  | G21: ='9-10-MDM&EGG'!D20 -> 0 | J21: =#REF! ->  | K21: ='9-10-MDM&EGG'!E20 -> 0 | O21: ='RICE ACCOUNT'!N21 -> 120 | Q21: 0 | R21: ='RICE ACCOUNT'!O21 -> 110 | U21: 0 | X21: ='RICE ACCOUNT'!F21 -> 0 | Y21: ='RICE ACCOUNT'!G21 -> 0 | Z21: 0
A22: 17 | B22: =#REF! ->  | C22: ='9-10-MDM&EGG'!C21 -> 213 | F22: =#REF! ->  | G22: ='9-10-MDM&EGG'!D21 -> 0 | J22: =#REF! ->  | K22: ='9-10-MDM&EGG'!E21 -> 0 | O22: ='RICE ACCOUNT'!N22 -> 120 | Q22: 0 | R22: ='RICE ACCOUNT'!O22 -> 110 | U22: 0 | X22: ='RICE ACCOUNT'!F22 -> 0 | Y22: ='RICE ACCOUNT'!G22 -> 0 | Z22: 0
A23: 18 | B23: =#REF! ->  | C23: ='9-10-MDM&EGG'!C22 -> 213 | F23: =#REF! ->  | G23: ='9-10-MDM&EGG'!D22 -> 0 | J23: =#REF! ->  | K23: ='9-10-MDM&EGG'!E22 -> 0 | O23: ='RICE ACCOUNT'!N23 -> 120 | Q23: 0 | R23: ='RICE ACCOUNT'!O23 -> 110 | U23: 0 | X23: ='RICE ACCOUNT'!F23 -> 0 | Y23: ='RICE ACCOUNT'!G23 -> 0 | Z23: 0
A24: 19 | B24: =#REF! ->  | C24: ='9-10-MDM&EGG'!C23 -> 213 | F24: =#REF! ->  | G24: ='9-10-MDM&EGG'!D23 -> 0 | J24: =#REF! ->  | K24: ='9-10-MDM&EGG'!E23 -> 0 | O24: ='RICE ACCOUNT'!N24 -> 120 | Q24: 0 | R24: ='RICE ACCOUNT'!O24 -> 110 | U24: 0 | X24: ='RICE ACCOUNT'!F24 -> 0 | Y24: ='RICE ACCOUNT'!G24 -> 0 | Z24: 0
A25: 20 | B25: =#REF! ->  | C25: ='9-10-MDM&EGG'!C24 -> 213 | F25: =#REF! ->  | G25: ='9-10-MDM&EGG'!D24 -> 0 | J25: =#REF! ->  | K25: ='9-10-MDM&EGG'!E24 -> 0 | O25: ='RICE ACCOUNT'!N25 -> 120 | Q25: 0 | R25: ='RICE ACCOUNT'!O25 -> 110 | U25: 0 | X25: ='RICE ACCOUNT'!F25 -> 0 | Y25: ='RICE ACCOUNT'!G25 -> 0 | Z25: 0
A26: 21 | B26: =#REF! ->  | C26: ='9-10-MDM&EGG'!C25 -> 213 | F26: =#REF! ->  | G26: ='9-10-MDM&EGG'!D25 -> 0 | J26: =#REF! ->  | K26: ='9-10-MDM&EGG'!E25 -> 0 | O26: ='RICE ACCOUNT'!N26 -> 120 | Q26: 0 | R26: ='RICE ACCOUNT'!O26 -> 110 | U26: 0 | X26: ='RICE ACCOUNT'!F26 -> 0 | Y26: ='RICE ACCOUNT'!G26 -> 0 | Z26: 0
A27: 22 | B27: =#REF! ->  | C27: ='9-10-MDM&EGG'!C26 -> 213 | F27: =#REF! ->  | G27: ='9-10-MDM&EGG'!D26 -> 0 | J27: =#REF! ->  | K27: ='9-10-MDM&EGG'!E26 -> 0 | O27: ='RICE ACCOUNT'!N27 -> 120 | Q27: 0 | R27: ='RICE ACCOUNT'!O27 -> 110 | U27: 0 | X27: ='RICE ACCOUNT'!F27 -> 0 | Y27: ='RICE ACCOUNT'!G27 -> 0 | Z27: 0
A28: 23 | B28: =#REF! ->  | C28: ='9-10-MDM&EGG'!C27 -> 152 | F28: =#REF! ->  | G28: ='9-10-MDM&EGG'!D27 -> 0 | J28: =#REF! ->  | K28: ='9-10-MDM&EGG'!E27 -> 0 | O28: ='RICE ACCOUNT'!N28 -> 120 | Q28: 0 | R28: ='RICE ACCOUNT'!O28 -> 110 | U28: 0 | X28: ='RICE ACCOUNT'!F28 -> 0 | Y28: ='RICE ACCOUNT'!G28 -> 0 | Z28: 0
A29: 24 | B29: =#REF! ->  | C29: ='9-10-MDM&EGG'!C28 -> 213 | F29: =#REF! ->  | G29: ='9-10-MDM&EGG'!D28 -> 0 | J29: =#REF! ->  | K29: ='9-10-MDM&EGG'!E28 -> 0 | O29: ='RICE ACCOUNT'!N29 -> 120 | Q29: 0 | R29: ='RICE ACCOUNT'!O29 -> 110 | U29: 0 | X29: ='RICE ACCOUNT'!F29 -> 0 | Y29: ='RICE ACCOUNT'!G29 -> 0 | Z29: 0
A30: 25 | B30: =#REF! ->  | C30: ='9-10-MDM&EGG'!C29 -> 213 | F30: =#REF! ->  | G30: ='9-10-MDM&EGG'!D29 -> 0 | J30: =#REF! ->  | K30: ='9-10-MDM&EGG'!E29 -> 0 | O30: ='RICE ACCOUNT'!N30 -> 120 | Q30: 0 | R30: ='RICE ACCOUNT'!O30 -> 110 | U30: 0 | X30: ='RICE ACCOUNT'!F30 -> 0 | Y30: ='RICE ACCOUNT'!G30 -> 0 | Z30: 0
A31: 26 | B31: =#REF! ->  | C31: ='9-10-MDM&EGG'!C30 -> 213 | F31: =#REF! ->  | G31: ='9-10-MDM&EGG'!D30 -> 0 | J31: =#REF! ->  | K31: ='9-10-MDM&EGG'!E30 -> 0 | O31: ='RICE ACCOUNT'!N31 -> 120 | Q31: 0 | R31: ='RICE ACCOUNT'!O31 -> 110 | U31: 0 | X31: ='RICE ACCOUNT'!F31 -> 0 | Y31: ='RICE ACCOUNT'!G31 -> 0 | Z31: 0
A32: 27 | B32: =#REF! ->  | C32: ='9-10-MDM&EGG'!C31 -> 213 | F32: =#REF! ->  | G32: ='9-10-MDM&EGG'!D31 -> 0 | J32: =#REF! ->  | K32: ='9-10-MDM&EGG'!E31 -> 0 | O32: ='RICE ACCOUNT'!N32 -> 120 | Q32: 0 | R32: ='RICE ACCOUNT'!O32 -> 110 | U32: 0 | X32: ='RICE ACCOUNT'!F32 -> 0 | Y32: ='RICE ACCOUNT'!G32 -> 0 | Z32: 0
A33: 28 | B33: =#REF! ->  | C33: ='9-10-MDM&EGG'!C32 -> 213 | F33: =#REF! ->  | G33: ='9-10-MDM&EGG'!D32 -> 0 | J33: =#REF! ->  | K33: ='9-10-MDM&EGG'!E32 -> 0 | O33: ='RICE ACCOUNT'!N33 -> 120 | Q33: 0 | R33: ='RICE ACCOUNT'!O33 -> 110 | U33: 0 | X33: ='RICE ACCOUNT'!F33 -> 0 | Y33: ='RICE ACCOUNT'!G33 -> 0 | Z33: 0
A34: 29 | B34: =#REF! ->  | C34: ='9-10-MDM&EGG'!C33 -> 213 | F34: =#REF! ->  | G34: ='9-10-MDM&EGG'!D33 -> 0 | J34: =#REF! ->  | K34: ='9-10-MDM&EGG'!E33 -> 0 | O34: ='RICE ACCOUNT'!N34 -> 120 | Q34: 0 | R34: ='RICE ACCOUNT'!O34 -> 110 | U34: 0 | X34: ='RICE ACCOUNT'!F34 -> 0 | Y34: ='RICE ACCOUNT'!G34 -> 0 | Z34: 0
A35: 30 | B35: =#REF! ->  | C35: ='9-10-MDM&EGG'!C34 -> 213 | F35: =#REF! ->  | G35: ='9-10-MDM&EGG'!D34 -> 0 | J35: =#REF! ->  | K35: ='9-10-MDM&EGG'!E34 -> 0 | O35: ='RICE ACCOUNT'!N35 -> 120 | Q35: 0 | R35: ='RICE ACCOUNT'!O35 -> 110 | U35: 0 | X35: ='RICE ACCOUNT'!F35 -> 0 | Y35: ='RICE ACCOUNT'!G35 -> 0 | Z35: 0
A36: 31 | B36: =#REF! ->  | C36: ='9-10-MDM&EGG'!C35 -> 213 | F36: =#REF! ->  | G36: ='9-10-MDM&EGG'!D35 -> 0 | J36: =#REF! ->  | K36: ='9-10-MDM&EGG'!E35 -> 0 | O36: ='RICE ACCOUNT'!N36 -> 120 | Q36: 0 | R36: ='RICE ACCOUNT'!O36 -> 110 | U36: 0 | X36: ='RICE ACCOUNT'!F36 -> 0 | Y36: ='RICE ACCOUNT'!G36 -> 0 | Z36: 0
B37: =#REF! ->  | C37: ='9-10-MDM&EGG'!C36 -> 0 | F37: =SUM(F6:F36) ->  | G37: =SUM(G6:G36) -> 0 | J37: =SUM(J6:J36) ->  | K37: =SUM(K6:K36) -> 0 | L37: =SUM(L6:L36) ->  | N37: =SUM(N6:N36) ->  | O37: =O36 -> 120 | Q37: =SUM(Q6:Q36) -> 0 | R37: =R36 -> 110 | U37: 0 | X37: =SUM(X6:X36) -> 0 | Y37: =SUM(Y6:Y36) -> 0 | Z37: 0
A39: RICE ACCOUNT
A40: OPENING BALANCE | F40: RECEIVED DURING THE MONTH | J40: TOTAL RICE | N40: UTILIZED DURING MONTH | U40: GROUND BALANCE | Y40: REMARKS
A41: =UPSBALANCE+HSBALANCE -> 230 | F41: =$Z$37 -> 0 | J41: =SUM(A41:I41) -> 230 | N41: =N37+Q37 ->  | U41: =J41-N41 -> 
AA45: ఆలుగడ్డ టమాట
AA46: గుడ్డు+సాంబారు
AA47: అరటిపండు+సాంబారు
AA48: వంకాయ+ఆలుగడ్డ
AA49: సోరకాయ పప్పు
AA50: గుడ్డు+సాంబారు
AA51: బీరకాయ టమాట
AA52: వంకాయ+ఆలుగడ్డ
U53: వంకాయ పప్పు | AA53: గుడ్డు+సాంబారు
AA54: పప్పుచారు
AA55: సోరకాయ పప్పు
AA56: గుడ్డు+సాంబారు
AA57: వంకాయ+ఆలుగడ్డ
AA58: బీరకాయ పప్పు
AA59: గుడ్డు+సాంబారు

Sheet PRIMARY INFORMATION
A1: MDM BILLS PREPRATION TOOL WITH RICE ACCOUNT FOR HIGH SCHOOLS
B5: NAME OF THE SCHOOL | C5: ZPHS ABC
B6: MANDAL | C6: XYZ | E6: UPS ENROLMENT | G6: 185
B7: NAME OF THE IA : | C7: ABCDEF | E7: HS ENROLMENT | G7: 155
B8: IA ACCOUNT NO : | C8: 1324678911
B9: MONTH | C9: 2020-01-01 | E9: NEXT MONTH RICE REUIREMENT
B10: UPS RICE OPENING BALANCE | C10: 120 | E10: UPS | G10: 600
B11: HS RICE OPENING BALANCE | C11: 110 | E11: HIGH SCHOOL | G11: 600
B12: COST PER CHILD 6 TO 10 | C12: 6.18
B13: COST PER CHILD 9 TO 10 | C13: 8.18
B14: EGG COST | C14: 4
B15: PRESENT RICE BALANCE | C15: =$C$22 -> 230
B17: UPS RICE | C17: ='RICE BALANC'!$A$8 -> 120
B18: HS RICE | C18: ='RICE BALANC'!$B$8 -> 110
B20: CLOSING BALANCE OF UPS | C20: ='6-8-MDMonthly'!$J$35 -> 120
B21: CLOSING BALANCE OF HS | C21: ='9-10-MDM&EGG'!$J$35 -> 110
B22: PRESENT RICE BALANCE | C22: =SUM(C20:C21) -> 230

Sheet ENTRY SHEET
M1: 0
B3: DATE | C3: HOLIDAYS | D3: UPS | G3: HS | J3: Rice RECEIVED | L3: MENU | M3: TYPE EGG
D4: ENROLLED | E4: PRESENT | F4: MDM TAKING | G4: ENROLLED | H4: PRESENT | I4: MDM TAKING | J4: UPS | K4: HS | M4: ON GIVEN DAY
B5: 1 | D5: =UPSENR -> 185 | G5: =HSENR -> 155
B6: 2 | D6: =D5 -> 185 | G6: =G5 -> 155 | N6: =F6+I6 -> 0
B7: 3 | D7: =D6 -> 185 | G7: =G6 -> 155 | N7: =F7+I7 -> 0
B8: 4 | D8: 185 | G8: 155 | N8: 0 | O8: UPS 6.18
B9: 5 | C9: SUNDAY | D9: 185 | G9: 155 | N9: 0 | O9: EGG 4
B10: 6 | D10: 185 | G10: 155 | N10: 0 | O10: IX X 8.18
B11: 7 | D11: 185 | G11: 155 | N11: 0
B12: 8 | D12: 185 | G12: 155 | N12: 0
B13: 9 | D13: 185 | G13: 155 | N13: 0
B14: 10 | D14: 185 | G14: 155 | N14: 0
B15: 11 | D15: 185 | G15: 155 | N15: 0
B16: 12 | C16: SUNDAY | D16: 185 | G16: 155 | N16: 0
B17: 13 | D17: 185 | G17: 155 | N17: 0
B18: 14 | D18: 185 | G18: 155 | N18: 0
B19: 15 | D19: 185 | G19: 155 | N19: 0
B20: 16 | D20: 185 | G20: 155 | N20: 0
B21: 17 | D21: 185 | G21: 213 | N21: 0
B22: 18 | D22: 185 | G22: 213 | N22: 0
B23: 19 | C23: SUNDAY | D23: 185 | G23: 213 | N23: 0
B24: 20 | D24: 185 | G24: 213 | N24: 0
B25: 21 | D25: 185 | G25: 213 | N25: 0
B26: 22 | D26: 185 | G26: 213 | N26: 0
B27: 23 | D27: 185 | G27: 213 | N27: 0
B28: 24 | D28: 185 | G28: 213 | N28: 0
B29: 25 | D29: 185 | G29: 213 | N29: 0
B30: 26 | C30: SUNDAY | D30: 185 | G30: 213 | N30: 0
B31: 27 | D31: 185 | G31: 213 | N31: 0
B32: 28 | D32: 185 | G32: 213 | N32: 0
B33: 29 | D33: 185 | G33: 213 | N33: 0
B34: 30 | D34: 185 | G34: 213 | N34: 0
B35: 31 | D35: 185 | G35: 213 | N35: 0
D36: =SUM(D5:D35) -> 5735 | E36: =SUM(E5:E35) -> 0 | F36: =SUM(F5:F35) -> 0 | G36: 5675 | H36: 0 | I36: 0 | J36: 0 | K36: 0 | M36: =COUNTIF(M5:M35, "EGG") -> 0
L37: TOMATO DAL
L38: ALU CURRY
L39: TOMATO DAL
L40: ALU CURRY
L41: DOSAKAYA CURRY
L42: TOMATO DAL
L43: BRINJAL CURRY
L44: DOSAKAYA CURRY
L45: TOMATO DAL
L46: BENDAKAYA CURRY
L47: TOMATO DAL
L48: TOMATO DALL
L49: BRINJAL CURRY
L50: TOMATO DAL
L51: TOMATO DAL
L52: TOMATO DAL
L53: ALU CURRY
L54: TOMATO DAL
L55: ALU CURRY
L56: TOMATO DAL

Sheet 6-8-MDMonthly
A1: ="MID-DAY MEALS BILL FOR THE MONTH OF " & TEXT(MONTH,"MMMM-YYYY") -> MID-DAY MEALS BILL FOR THE MONTH OF January-2020
A2: MANDAL : | C2: =MANDAL -> XYZ | E2: =SCHOOL -> ZPHS ABC | K2: UPS(VI-VIII) | Q2: PREVIOUS BALANCE | R2: BALANCE | S2: ='PRIMARY INFORMATION'!$C$10+'PRIMARY INFORMATION'!$C$11 -> 230
A3: =" NAME OF THE IA : "& GROUP -> NAME OF THE IA : ABCDEF | H3: A/c No | I3: =ACCNO -> 1324678911
A4: DAY | B4: Holiday | C4: TOTAL ENROLLMENT | D4: TOTAL PRESENT | E4: MDM TAKEN | F4: ="Amount in Rs.@ " & COSTPCHILDUPS -> Amount in Rs.@ 6.18 | G4: Opening Balance of Rice in Kg.Gms | H4: Rice Received during the month in Kg.Gms | I4: Rice Utilized in Kg.Gms @150gm | J4: Closing Balance of Rice in Kg.Gms | K4: Menu | N4: RISE USED | O4: RICE BALANCE | P4: RICE RECEIVED
A5: ='ENTRY SHEET'!B5 -> 1 | B5: =IF('ENTRY SHEET'!C5=0,"",'ENTRY SHEET'!C5) ->  | C5: ='ENTRY SHEET'!D5 -> 185 | D5: ='ENTRY SHEET'!E5 -> 0 | E5: ='ENTRY SHEET'!F5 -> 0 | F5: =E5*COSTPCHILDUPS -> 0 | G5: =UPSBALANCE -> 120 | H5: ='ENTRY SHEET'!J5 -> 0 | I5: =E5*0.15 -> 0 | J5: =G5+H5-I5 -> 120 | K5: ='ENTRY SHEET'!L5&IF('ENTRY SHEET'!M5="EGG","+"&'ENTRY SHEET'!M5,"") ->  | N5: =F5*150/1000 -> 0 | O5: =($P$2)-N5 -> 0
A6: ='ENTRY SHEET'!B6 -> 2 | B6: =IF('ENTRY SHEET'!C6=0,"",'ENTRY SHEET'!C6) ->  | C6: ='ENTRY SHEET'!D6 -> 185 | D6: ='ENTRY SHEET'!E6 -> 0 | E6: ='ENTRY SHEET'!F6 -> 0 | F6: 0 | G6: =J5 -> 120 | H6: ='ENTRY SHEET'!J6 -> 0 | I6: =E6*0.15 -> 0 | J6: =G6+H6-I6 -> 120 | K6: ='ENTRY SHEET'!L6&IF('ENTRY SHEET'!M6="EGG","+"&'ENTRY SHEET'!M6,"") ->  | N6: 0 | O6: =(O5+P5)-N6 -> 0
A7: ='ENTRY SHEET'!B7 -> 3 | B7: =IF('ENTRY SHEET'!C7=0,"",'ENTRY SHEET'!C7) ->  | C7: ='ENTRY SHEET'!D7 -> 185 | D7: ='ENTRY SHEET'!E7 -> 0 | E7: ='ENTRY SHEET'!F7 -> 0 | F7: 0 | G7: =J6 -> 120 | H7: ='ENTRY SHEET'!J7 -> 0 | I7: 0 | J7: 120 | K7: ='ENTRY SHEET'!L7&IF('ENTRY SHEET'!M7="EGG","+"&'ENTRY SHEET'!M7,"") ->  | N7: 0 | O7: =(O6+P6)-N7 -> 0
A8: ='ENTRY SHEET'!B8 -> 4 | B8: =IF('ENTRY SHEET'!C8=0,"",'ENTRY SHEET'!C8) ->  | C8: ='ENTRY SHEET'!D8 -> 185 | D8: ='ENTRY SHEET'!E8 -> 0 | E8: ='ENTRY SHEET'!F8 -> 0 | F8: 0 | G8: 120 | H8: ='ENTRY SHEET'!J8 -> 0 | I8: 0 | J8: 120 | K8: ='ENTRY SHEET'!L8&IF('ENTRY SHEET'!M8="EGG","+"&'ENTRY SHEET'!M8,"") ->  | N8: 0 | O8: 0
A9: ='ENTRY SHEET'!B9 -> 5 | B9: =IF('ENTRY SHEET'!C9=0,"",'ENTRY SHEET'!C9) -> SUNDAY | C9: ='ENTRY SHEET'!D9 -> 185 | D9: ='ENTRY SHEET'!E9 -> 0 | E9: ='ENTRY SHEET'!F9 -> 0 | F9: 0 | G9: 120 | H9: ='ENTRY SHEET'!J9 -> 0 | I9: 0 | J9: 120 | K9: ='ENTRY SHEET'!L9&IF('ENTRY SHEET'!M9="EGG","+"&'ENTRY SHEET'!M9,"") ->  | N9: 0 | O9: 0
A10: ='ENTRY SHEET'!B10 -> 6 | B10: =IF('ENTRY SHEET'!C10=0,"",'ENTRY SHEET'!C10) ->  | C10: ='ENTRY SHEET'!D10 -> 185 | D10: ='ENTRY SHEET'!E10 -> 0 | E10: ='ENTRY SHEET'!F10 -> 0 | F10: 0 | G10: 120 | H10: ='ENTRY SHEET'!J10 -> 0 | I10: 0 | J10: 120 | K10: ='ENTRY SHEET'!L10&IF('ENTRY SHEET'!M10="EGG","+"&'ENTRY SHEET'!M10,"") ->  | N10: 0 | O10: 0
A11: ='ENTRY SHEET'!B11 -> 7 | B11: =IF('ENTRY SHEET'!C11=0,"",'ENTRY SHEET'!C11) ->  | C11: ='ENTRY SHEET'!D11 -> 185 | D11: ='ENTRY SHEET'!E11 -> 0 | E11: ='ENTRY SHEET'!F11 -> 0 | F11: 0 | G11: 120 | H11: ='ENTRY SHEET'!J11 -> 0 | I11: 0 | J11: 120 | K11: ='ENTRY SHEET'!L11&IF('ENTRY SHEET'!M11="EGG","+"&'ENTRY SHEET'!M11,"") ->  | N11: 0 | O11: 0
A12: ='ENTRY SHEET'!B12 -> 8 | B12: =IF('ENTRY SHEET'!C12=0,"",'ENTRY SHEET'!C12) ->  | C12: ='ENTRY SHEET'!D12 -> 185 | D12: ='ENTRY SHEET'!E12 -> 0 | E12: ='ENTRY SHEET'!F12 -> 0 | F12: 0 | G12: 120 | H12: ='ENTRY SHEET'!J12 -> 0 | I12: 0 | J12: 120 | K12: ='ENTRY SHEET'!L12&IF('ENTRY SHEET'!M12="EGG","+"&'ENTRY SHEET'!M12,"") ->  | N12: 0 | O12: 0
A13: ='ENTRY SHEET'!B13 -> 9 | B13: =IF('ENTRY SHEET'!C13=0,"",'ENTRY SHEET'!C13) ->  | C13: ='ENTRY SHEET'!D13 -> 185 | D13: ='ENTRY SHEET'!E13 -> 0 | E13: ='ENTRY SHEET'!F13 -> 0 | F13: 0 | G13: 120 | H13: ='ENTRY SHEET'!J13 -> 0 | I13: 0 | J13: 120 | K13: ='ENTRY SHEET'!L13&IF('ENTRY SHEET'!M13="EGG","+"&'ENTRY SHEET'!M13,"") ->  | N13: 0 | O13: 0
A14: ='ENTRY SHEET'!B14 -> 10 | B14: =IF('ENTRY SHEET'!C14=0,"",'ENTRY SHEET'!C14) ->  | C14: ='ENTRY SHEET'!D14 -> 185 | D14: ='ENTRY SHEET'!E14 -> 0 | E14: ='ENTRY SHEET'!F14 -> 0 | F14: 0 | G14: 120 | H14: ='ENTRY SHEET'!J14 -> 0 | I14: 0 | J14: 120 | K14: ='ENTRY SHEET'!L14&IF('ENTRY SHEET'!M14="EGG","+"&'ENTRY SHEET'!M14,"") ->  | N14: 0 | O14: 0
A15: ='ENTRY SHEET'!B15 -> 11 | B15: =IF('ENTRY SHEET'!C15=0,"",'ENTRY SHEET'!C15) ->  | C15: ='ENTRY SHEET'!D15 -> 185 | D15: ='ENTRY SHEET'!E15 -> 0 | E15: ='ENTRY SHEET'!F15 -> 0 | F15: 0 | G15: 120 | H15: ='ENTRY SHEET'!J15 -> 0 | I15: 0 | J15: 120 | K15: ='ENTRY SHEET'!L15&IF('ENTRY SHEET'!M15="EGG","+"&'ENTRY SHEET'!M15,"") ->  | N15: 0 | O15: 0
A16: ='ENTRY SHEET'!B16 -> 12 | B16: =IF('ENTRY SHEET'!C16=0,"",'ENTRY SHEET'!C16) -> SUNDAY | C16: ='ENTRY SHEET'!D16 -> 185 | D16: ='ENTRY SHEET'!E16 -> 0 | E16: ='ENTRY SHEET'!F16 -> 0 | F16: 0 | G16: 120 | H16: ='ENTRY SHEET'!J16 -> 0 | I16: 0 | J16: 120 | K16: ='ENTRY SHEET'!L16&IF('ENTRY SHEET'!M16="EGG","+"&'ENTRY SHEET'!M16,"") ->  | N16: 0 | O16: 0
A17: ='ENTRY SHEET'!B17 -> 13 | B17: =IF('ENTRY SHEET'!C17=0,"",'ENTRY SHEET'!C17) ->  | C17: ='ENTRY SHEET'!D17 -> 185 | D17: ='ENTRY SHEET'!E17 -> 0 | E17: ='ENTRY SHEET'!F17 -> 0 | F17: 0 | G17: 120 | H17: ='ENTRY SHEET'!J17 -> 0 | I17: 0 | J17: 120 | K17: ='ENTRY SHEET'!L17&IF('ENTRY SHEET'!M17="EGG","+"&'ENTRY SHEET'!M17,"") ->  | N17: 0 | O17: 0
A18: ='ENTRY SHEET'!B18 -> 14 | B18: =IF('ENTRY SHEET'!C18=0,"",'ENTRY SHEET'!C18) ->  | C18: ='ENTRY SHEET'!D18 -> 185 | D18: ='ENTRY SHEET'!E18 -> 0 | E18: ='ENTRY SHEET'!F18 -> 0 | F18: 0 | G18: 120 | H18: ='ENTRY SHEET'!J18 -> 0 | I18: 0 | J18: 120 | K18: ='ENTRY SHEET'!L18&IF('ENTRY SHEET'!M18="EGG","+"&'ENTRY SHEET'!M18,"") ->  | N18: 0 | O18: 0
A19: ='ENTRY SHEET'!B19 -> 15 | B19: =IF('ENTRY SHEET'!C19=0,"",'ENTRY SHEET'!C19) ->  | C19: ='ENTRY SHEET'!D19 -> 185 | D19: ='ENTRY SHEET'!E19 -> 0 | E19: ='ENTRY SHEET'!F19 -> 0 | F19: 0 | G19: 120 | H19: ='ENTRY SHEET'!J19 -> 0 | I19: 0 | J19: 120 | K19: ='ENTRY SHEET'!L19&IF('ENTRY SHEET'!M19="EGG","+"&'ENTRY SHEET'!M19,"") ->  | N19: 0 | O19: 0
A20: ='ENTRY SHEET'!B20 -> 16 | B20: =IF('ENTRY SHEET'!C20=0,"",'ENTRY SHEET'!C20) ->  | C20: ='ENTRY SHEET'!D20 -> 185 | D20: ='ENTRY SHEET'!E20 -> 0 | E20: ='ENTRY SHEET'!F20 -> 0 | F20: 0 | G20: 120 | H20: ='ENTRY SHEET'!J20 -> 0 | I20: 0 | J20: 120 | K20: ='ENTRY SHEET'!L20&IF('ENTRY SHEET'!M20="EGG","+"&'ENTRY SHEET'!M20,"") ->  | N20: 0 | O20: 0
A21: ='ENTRY SHEET'!B21 -> 17 | B21: =IF('ENTRY SHEET'!C21=0,"",'ENTRY SHEET'!C21) ->  | C21: ='ENTRY SHEET'!D21 -> 185 | D21: ='ENTRY SHEET'!E21 -> 0 | E21: ='ENTRY SHEET'!F21 -> 0 | F21: 0 | G21: 120 | H21: ='ENTRY SHEET'!J21 -> 0 | I21: 0 | J21: 120 | K21: ='ENTRY SHEET'!L21&IF('ENTRY SHEET'!M21="EGG","+"&'ENTRY SHEET'!M21,"") ->  | N21: 0 | O21: 0
A22: ='ENTRY SHEET'!B22 -> 18 | B22: =IF('ENTRY SHEET'!C22=0,"",'ENTRY SHEET'!C22) ->  | C22: ='ENTRY SHEET'!D22 -> 185 | D22: ='ENTRY SHEET'!E22 -> 0 | E22: ='ENTRY SHEET'!F22 -> 0 | F22: 0 | G22: 120 | H22: ='ENTRY SHEET'!J22 -> 0 | I22: 0 | J22: 120 | K22: ='ENTRY SHEET'!L22&IF('ENTRY SHEET'!M22="EGG","+"&'ENTRY SHEET'!M22,"") ->  | N22: 0 | O22: 0
A23: ='ENTRY SHEET'!B23 -> 19 | B23: =IF('ENTRY SHEET'!C23=0,"",'ENTRY SHEET'!C23) -> SUNDAY | C23: ='ENTRY SHEET'!D23 -> 185 | D23: ='ENTRY SHEET'!E23 -> 0 | E23: ='ENTRY SHEET'!F23 -> 0 | F23: 0 | G23: 120 | H23: ='ENTRY SHEET'!J23 -> 0 | I23: 0 | J23: 120 | K23: ='ENTRY SHEET'!L23&IF('ENTRY SHEET'!M23="EGG","+"&'ENTRY SHEET'!M23,"") ->  | N23: 0 | O23: 0
A24: ='ENTRY SHEET'!B24 -> 20 | B24: =IF('ENTRY SHEET'!C24=0,"",'ENTRY SHEET'!C24) ->  | C24: ='ENTRY SHEET'!D24 -> 185 | D24: ='ENTRY SHEET'!E24 -> 0 | E24: ='ENTRY SHEET'!F24 -> 0 | F24: 0 | G24: 120 | H24: ='ENTRY SHEET'!J24 -> 0 | I24: 0 | J24: 120 | K24: ='ENTRY SHEET'!L24&IF('ENTRY SHEET'!M24="EGG","+"&'ENTRY SHEET'!M24,"") ->  | N24: 0 | O24: 0
A25: ='ENTRY SHEET'!B25 -> 21 | B25: =IF('ENTRY SHEET'!C25=0,"",'ENTRY SHEET'!C25) ->  | C25: ='ENTRY SHEET'!D25 -> 185 | D25: ='ENTRY SHEET'!E25 -> 0 | E25: ='ENTRY SHEET'!F25 -> 0 | F25: 0 | G25: 120 | H25: ='ENTRY SHEET'!J25 -> 0 | I25: 0 | J25: 120 | K25: ='ENTRY SHEET'!L25&IF('ENTRY SHEET'!M25="EGG","+"&'ENTRY SHEET'!M25,"") ->  | N25: 0 | O25: 0
A26: ='ENTRY SHEET'!B26 -> 22 | B26: =IF('ENTRY SHEET'!C26=0,"",'ENTRY SHEET'!C26) ->  | C26: ='ENTRY SHEET'!D26 -> 185 | D26: ='ENTRY SHEET'!E26 -> 0 | E26: ='ENTRY SHEET'!F26 -> 0 | F26: 0 | G26: 120 | H26: ='ENTRY SHEET'!J26 -> 0 | I26: 0 | J26: 120 | K26: ='ENTRY SHEET'!L26&IF('ENTRY SHEET'!M26="EGG","+"&'ENTRY SHEET'!M26,"") ->  | N26: 0 | O26: 0
A27: ='ENTRY SHEET'!B27 -> 23 | B27: =IF('ENTRY SHEET'!C27=0,"",'ENTRY SHEET'!C27) ->  | C27: ='ENTRY SHEET'!D27 -> 185 | D27: ='ENTRY SHEET'!E27 -> 0 | E27: ='ENTRY SHEET'!F27 -> 0 | F27: 0 | G27: 120 | H27: ='ENTRY SHEET'!J27 -> 0 | I27: 0 | J27: 120 | K27: ='ENTRY SHEET'!L27&IF('ENTRY SHEET'!M27="EGG","+"&'ENTRY SHEET'!M27,"") ->  | N27: 0 | O27: 0
A28: ='ENTRY SHEET'!B28 -> 24 | B28: =IF('ENTRY SHEET'!C28=0,"",'ENTRY SHEET'!C28) ->  | C28: ='ENTRY SHEET'!D28 -> 185 | D28: ='ENTRY SHEET'!E28 -> 0 | E28: ='ENTRY SHEET'!F28 -> 0 | F28: 0 | G28: 120 | H28: ='ENTRY SHEET'!J28 -> 0 | I28: 0 | J28: 120 | K28: ='ENTRY SHEET'!L28&IF('ENTRY SHEET'!M28="EGG","+"&'ENTRY SHEET'!M28,"") ->  | N28: 0 | O28: 0
A29: ='ENTRY SHEET'!B29 -> 25 | B29: =IF('ENTRY SHEET'!C29=0,"",'ENTRY SHEET'!C29) ->  | C29: ='ENTRY SHEET'!D29 -> 185 | D29: ='ENTRY SHEET'!E29 -> 0 | E29: ='ENTRY SHEET'!F29 -> 0 | F29: 0 | G29: 120 | H29: ='ENTRY SHEET'!J29 -> 0 | I29: 0 | J29: 120 | K29: ='ENTRY SHEET'!L29&IF('ENTRY SHEET'!M29="EGG","+"&'ENTRY SHEET'!M29,"") ->  | N29: 0 | O29: 0
A30: ='ENTRY SHEET'!B30 -> 26 | B30: =IF('ENTRY SHEET'!C30=0,"",'ENTRY SHEET'!C30) -> SUNDAY | C30: ='ENTRY SHEET'!D30 -> 185 | D30: ='ENTRY SHEET'!E30 -> 0 | E30: ='ENTRY SHEET'!F30 -> 0 | F30: 0 | G30: 120 | H30: ='ENTRY SHEET'!J30 -> 0 | I30: 0 | J30: 120 | K30: ='ENTRY SHEET'!L30&IF('ENTRY SHEET'!M30="EGG","+"&'ENTRY SHEET'!M30,"") ->  | N30: 0 | O30: 0
A31: ='ENTRY SHEET'!B31 -> 27 | B31: =IF('ENTRY SHEET'!C31=0,"",'ENTRY SHEET'!C31) ->  | C31: ='ENTRY SHEET'!D31 -> 185 | D31: ='ENTRY SHEET'!E31 -> 0 | E31: ='ENTRY SHEET'!F31 -> 0 | F31: 0 | G31: 120 | H31: ='ENTRY SHEET'!J31 -> 0 | I31: 0 | J31: 120 | K31: ='ENTRY SHEET'!L31&IF('ENTRY SHEET'!M31="EGG","+"&'ENTRY SHEET'!M31,"") ->  | N31: 0 | O31: 0
A32: ='ENTRY SHEET'!B32 -> 28 | B32: =IF('ENTRY SHEET'!C32=0,"",'ENTRY SHEET'!C32) ->  | C32: ='ENTRY SHEET'!D32 -> 185 | D32: ='ENTRY SHEET'!E32 -> 0 | E32: ='ENTRY SHEET'!F32 -> 0 | F32: 0 | G32: 120 | H32: ='ENTRY SHEET'!J32 -> 0 | I32: 0 | J32: 120 | K32: ='ENTRY SHEET'!L32&IF('ENTRY SHEET'!M32="EGG","+"&'ENTRY SHEET'!M32,"") ->  | N32: 0 | O32: 0
A33: ='ENTRY SHEET'!B33 -> 29 | B33: =IF('ENTRY SHEET'!C33=0,"",'ENTRY SHEET'!C33) ->  | C33: ='ENTRY SHEET'!D33 -> 185 | D33: ='ENTRY SHEET'!E33 -> 0 | E33: ='ENTRY SHEET'!F33 -> 0 | F33: 0 | G33: 120 | H33: ='ENTRY SHEET'!J33 -> 0 | I33: 0 | J33: 120 | K33: ='ENTRY SHEET'!L33&IF('ENTRY SHEET'!M33="EGG","+"&'ENTRY SHEET'!M33,"") ->  | N33: 0 | O33: 0
A34: ='ENTRY SHEET'!B34 -> 30 | B34: =IF('ENTRY SHEET'!C34=0,"",'ENTRY SHEET'!C34) ->  | C34: ='ENTRY SHEET'!D34 -> 185 | D34: ='ENTRY SHEET'!E34 -> 0 | E34: ='ENTRY SHEET'!F34 -> 0 | F34: 0 | G34: 120 | H34: ='ENTRY SHEET'!J34 -> 0 | I34: 0 | J34: =G34+H34-I34 -> 120 | K34: ='ENTRY SHEET'!L34&IF('ENTRY SHEET'!M34="EGG","+"&'ENTRY SHEET'!M34,"") ->  | N34: 0 | O34: 0
A35: ='ENTRY SHEET'!B35 -> 31 | B35: =IF('ENTRY SHEET'!C35=0,"",'ENTRY SHEET'!C35) ->  | C35: ='ENTRY SHEET'!D35 -> 185 | D35: ='ENTRY SHEET'!E35 -> 0 | E35: ='ENTRY SHEET'!F35 -> 0 | F35: 0 | G35: 120 | H35: ='ENTRY SHEET'!J35 -> 0 | I35: 0 | J35: =G35+H35-I35 -> 120 | K35: ='ENTRY SHEET'!L35&IF('ENTRY SHEET'!M35="EGG","+"&'ENTRY SHEET'!M35,"") ->  | N35: 0 | O35: 0
D36: =SUM(D5:D35) -> 0 | E36: =SUM(E5:E35) -> 0 | F36: =SUM(F5:F35) -> 0 | G36: =G35 -> 120 | H36: =H35 -> 0 | I36: =SUM(I5:I35) -> 0 | N36: 0 | O36: 0
A38: Certified that Two(2) Eggs per week suplied to students, Rice Required for NextMonth : | J38: =UPSRICE & " KG" -> 600 KG
A39: Sign. Of the Implementing Agency 1)…………………………………………..2)…………………………………………
I40: Sign. Of the Head Master
A41: ="Pass Order : Sum of Rs.: " &TEXT(F36,"##,##,##.00") -> Pass Order : Sum of Rs.: .00
A42: ="(Rupees "&rswords(F36)&")" -> (Rupees Rupees Nil)
A43: may be sanctioned & Credited into MDM implementing Agency Account | I43: Mandal Educational Officer

Sheet 6-8-EGG BILL
A1: ="MID-DAY MEALS BILL FOR THE MONTH OF " & TEXT(MONTH,"MMMM-YYYY") -> MID-DAY MEALS BILL FOR THE MONTH OF January-2020
A2: ="MANDAL : "&MANDAL & " SCHOOL: " -> MANDAL : XYZ SCHOOL: | C2: =SCHOOL -> ZPHS ABC | H2: UPS-EGG BILL | I2: PREVIOUS BALANCE | J2: ='PRIMARY INFORMATION'!$C$10+'PRIMARY INFORMATION'!$C$11 -> 230
A3: =" NAME OF THE IA : "& GROUP -> NAME OF THE IA : ABCDEF | C3: A/c No.: | F3: =ACCNO -> 1324678911
A4: DAY | B4: Holiday | C4: TOTAL ENROLLMENT | D4: TOTAL PRESENT | E4: MDM TAKEN | F4: ="Amount in Rs.@ " & EGGCOST -> Amount in Rs.@ 4 | H4: Menu
A5: ='ENTRY SHEET'!B5 -> 1 | B5: =IF('ENTRY SHEET'!C5=0,"",'ENTRY SHEET'!C5) ->  | C5: =IF((H5="EGG"),'ENTRY SHEET'!D5,0) -> 0 | D5: =IF((H5="EGG"),'ENTRY SHEET'!E5,0) -> 0 | E5: =IF((H5="EGG"),'ENTRY SHEET'!F5,0) -> 0 | F5: =E5*EGGCOST -> 0 | H5: ='ENTRY SHEET'!M5 -> 0
A6: ='ENTRY SHEET'!B6 -> 2 | B6: =IF('ENTRY SHEET'!C6=0,"",'ENTRY SHEET'!C6) ->  | C6: =IF((H6="EGG"),'ENTRY SHEET'!D6,0) -> 0 | D6: =IF((H6="EGG"),'ENTRY SHEET'!E6,0) -> 0 | E6: =IF((H6="EGG"),'ENTRY SHEET'!F6,0) -> 0 | F6: 0 | H6: ='ENTRY SHEET'!M6 -> 0
A7: ='ENTRY SHEET'!B7 -> 3 | B7: =IF('ENTRY SHEET'!C7=0,"",'ENTRY SHEET'!C7) ->  | C7: =IF((H7="EGG"),'ENTRY SHEET'!D7,0) -> 0 | D7: =IF((H7="EGG"),'ENTRY SHEET'!E7,0) -> 0 | E7: =IF((H7="EGG"),'ENTRY SHEET'!F7,0) -> 0 | F7: 0 | H7: ='ENTRY SHEET'!M7 -> 0
A8: ='ENTRY SHEET'!B8 -> 4 | B8: =IF('ENTRY SHEET'!C8=0,"",'ENTRY SHEET'!C8) ->  | C8: =IF((H8="EGG"),'ENTRY SHEET'!D8,0) -> 0 | D8: =IF((H8="EGG"),'ENTRY SHEET'!E8,0) -> 0 | E8: =IF((H8="EGG"),'ENTRY SHEET'!F8,0) -> 0 | F8: 0 | H8: ='ENTRY SHEET'!M8 -> 0
A9: ='ENTRY SHEET'!B9 -> 5 | B9: =IF('ENTRY SHEET'!C9=0,"",'ENTRY SHEET'!C9) -> SUNDAY | C9: =IF((H9="EGG"),'ENTRY SHEET'!D9,0) -> 0 | D9: =IF((H9="EGG"),'ENTRY SHEET'!E9,0) -> 0 | E9: =IF((H9="EGG"),'ENTRY SHEET'!F9,0) -> 0 | F9: 0 | H9: ='ENTRY SHEET'!M9 -> 0
A10: ='ENTRY SHEET'!B10 -> 6 | B10: =IF('ENTRY SHEET'!C10=0,"",'ENTRY SHEET'!C10) ->  | C10: =IF((H10="EGG"),'ENTRY SHEET'!D10,0) -> 0 | D10: =IF((H10="EGG"),'ENTRY SHEET'!E10,0) -> 0 | E10: =IF((H10="EGG"),'ENTRY SHEET'!F10,0) -> 0 | F10: 0 | H10: ='ENTRY SHEET'!M10 -> 0
A11: ='ENTRY SHEET'!B11 -> 7 | B11: =IF('ENTRY SHEET'!C11=0,"",'ENTRY SHEET'!C11) ->  | C11: =IF((H11="EGG"),'ENTRY SHEET'!D11,0) -> 0 | D11: =IF((H11="EGG"),'ENTRY SHEET'!E11,0) -> 0 | E11: =IF((H11="EGG"),'ENTRY SHEET'!F11,0) -> 0 | F11: 0 | H11: ='ENTRY SHEET'!M11 -> 0
A12: ='ENTRY SHEET'!B12 -> 8 | B12: =IF('ENTRY SHEET'!C12=0,"",'ENTRY SHEET'!C12) ->  | C12: =IF((H12="EGG"),'ENTRY SHEET'!D12,0) -> 0 | D12: =IF((H12="EGG"),'ENTRY SHEET'!E12,0) -> 0 | E12: =IF((H12="EGG"),'ENTRY SHEET'!F12,0) -> 0 | F12: 0 | H12: ='ENTRY SHEET'!M12 -> 0
A13: ='ENTRY SHEET'!B13 -> 9 | B13: =IF('ENTRY SHEET'!C13=0,"",'ENTRY SHEET'!C13) ->  | C13: =IF((H13="EGG"),'ENTRY SHEET'!D13,0) -> 0 | D13: =IF((H13="EGG"),'ENTRY SHEET'!E13,0) -> 0 | E13: =IF((H13="EGG"),'ENTRY SHEET'!F13,0) -> 0 | F13: 0 | H13: ='ENTRY SHEET'!M13 -> 0
A14: ='ENTRY SHEET'!B14 -> 10 | B14: =IF('ENTRY SHEET'!C14=0,"",'ENTRY SHEET'!C14) ->  | C14: =IF((H14="EGG"),'ENTRY SHEET'!D14,0) -> 0 | D14: =IF((H14="EGG"),'ENTRY SHEET'!E14,0) -> 0 | E14: =IF((H14="EGG"),'ENTRY SHEET'!F14,0) -> 0 | F14: 0 | H14: ='ENTRY SHEET'!M14 -> 0
A15: ='ENTRY SHEET'!B15 -> 11 | B15: =IF('ENTRY SHEET'!C15=0,"",'ENTRY SHEET'!C15) ->  | C15: =IF((H15="EGG"),'ENTRY SHEET'!D15,0) -> 0 | D15: =IF((H15="EGG"),'ENTRY SHEET'!E15,0) -> 0 | E15: =IF((H15="EGG"),'ENTRY SHEET'!F15,0) -> 0 | F15: 0 | H15: ='ENTRY SHEET'!M15 -> 0
A16: ='ENTRY SHEET'!B16 -> 12 | B16: =IF('ENTRY SHEET'!C16=0,"",'ENTRY SHEET'!C16) -> SUNDAY | C16: =IF((H16="EGG"),'ENTRY SHEET'!D16,0) -> 0 | D16: =IF((H16="EGG"),'ENTRY SHEET'!E16,0) -> 0 | E16: =IF((H16="EGG"),'ENTRY SHEET'!F16,0) -> 0 | F16: 0 | H16: ='ENTRY SHEET'!M16 -> 0
A17: ='ENTRY SHEET'!B17 -> 13 | B17: =IF('ENTRY SHEET'!C17=0,"",'ENTRY SHEET'!C17) ->  | C17: =IF((H17="EGG"),'ENTRY SHEET'!D17,0) -> 0 | D17: =IF((H17="EGG"),'ENTRY SHEET'!E17,0) -> 0 | E17: =IF((H17="EGG"),'ENTRY SHEET'!F17,0) -> 0 | F17: 0 | H17: ='ENTRY SHEET'!M17 -> 0
A18: ='ENTRY SHEET'!B18 -> 14 | B18: =IF('ENTRY SHEET'!C18=0,"",'ENTRY SHEET'!C18) ->  | C18: =IF((H18="EGG"),'ENTRY SHEET'!D18,0) -> 0 | D18: =IF((H18="EGG"),'ENTRY SHEET'!E18,0) -> 0 | E18: =IF((H18="EGG"),'ENTRY SHEET'!F18,0) -> 0 | F18: 0 | H18: ='ENTRY SHEET'!M18 -> 0
A19: ='ENTRY SHEET'!B19 -> 15 | B19: =IF('ENTRY SHEET'!C19=0,"",'ENTRY SHEET'!C19) ->  | C19: =IF((H19="EGG"),'ENTRY SHEET'!D19,0) -> 0 | D19: =IF((H19="EGG"),'ENTRY SHEET'!E19,0) -> 0 | E19: =IF((H19="EGG"),'ENTRY SHEET'!F19,0) -> 0 | F19: 0 | H19: ='ENTRY SHEET'!M19 -> 0
A20: ='ENTRY SHEET'!B20 -> 16 | B20: =IF('ENTRY SHEET'!C20=0,"",'ENTRY SHEET'!C20) ->  | C20: =IF((H20="EGG"),'ENTRY SHEET'!D20,0) -> 0 | D20: =IF((H20="EGG"),'ENTRY SHEET'!E20,0) -> 0 | E20: =IF((H20="EGG"),'ENTRY SHEET'!F20,0) -> 0 | F20: 0 | H20: ='ENTRY SHEET'!M20 -> 0
A21: ='ENTRY SHEET'!B21 -> 17 | B21: =IF('ENTRY SHEET'!C21=0,"",'ENTRY SHEET'!C21) ->  | C21: =IF((H21="EGG"),'ENTRY SHEET'!D21,0) -> 0 | D21: =IF((H21="EGG"),'ENTRY SHEET'!E21,0) -> 0 | E21: =IF((H21="EGG"),'ENTRY SHEET'!F21,0) -> 0 | F21: 0 | H21: ='ENTRY SHEET'!M21 -> 0
A22: ='ENTRY SHEET'!B22 -> 18 | B22: =IF('ENTRY SHEET'!C22=0,"",'ENTRY SHEET'!C22) ->  | C22: =IF((H22="EGG"),'ENTRY SHEET'!D22,0) -> 0 | D22: =IF((H22="EGG"),'ENTRY SHEET'!E22,0) -> 0 | E22: =IF((H22="EGG"),'ENTRY SHEET'!F22,0) -> 0 | F22: 0 | H22: ='ENTRY SHEET'!M22 -> 0
A23: ='ENTRY SHEET'!B23 -> 19 | B23: =IF('ENTRY SHEET'!C23=0,"",'ENTRY SHEET'!C23) -> SUNDAY | C23: =IF((H23="EGG"),'ENTRY SHEET'!D23,0) -> 0 | D23: =IF((H23="EGG"),'ENTRY SHEET'!E23,0) -> 0 | E23: =IF((H23="EGG"),'ENTRY SHEET'!F23,0) -> 0 | F23: 0 | H23: ='ENTRY SHEET'!M23 -> 0
A24: ='ENTRY SHEET'!B24 -> 20 | B24: =IF('ENTRY SHEET'!C24=0,"",'ENTRY SHEET'!C24) ->  | C24: =IF((H24="EGG"),'ENTRY SHEET'!D24,0) -> 0 | D24: =IF((H24="EGG"),'ENTRY SHEET'!E24,0) -> 0 | E24: =IF((H24="EGG"),'ENTRY SHEET'!F24,0) -> 0 | F24: 0 | H24: ='ENTRY SHEET'!M24 -> 0
A25: ='ENTRY SHEET'!B25 -> 21 | B25: =IF('ENTRY SHEET'!C25=0,"",'ENTRY SHEET'!C25) ->  | C25: =IF((H25="EGG"),'ENTRY SHEET'!D25,0) -> 0 | D25: =IF((H25="EGG"),'ENTRY SHEET'!E25,0) -> 0 | E25: =IF((H25="EGG"),'ENTRY SHEET'!F25,0) -> 0 | F25: 0 | H25: ='ENTRY SHEET'!M25 -> 0
A26: ='ENTRY SHEET'!B26 -> 22 | B26: =IF('ENTRY SHEET'!C26=0,"",'ENTRY SHEET'!C26) ->  | C26: =IF((H26="EGG"),'ENTRY SHEET'!D26,0) -> 0 | D26: =IF((H26="EGG"),'ENTRY SHEET'!E26,0) -> 0 | E26: =IF((H26="EGG"),'ENTRY SHEET'!F26,0) -> 0 | F26: 0 | H26: ='ENTRY SHEET'!M26 -> 0
A27: ='ENTRY SHEET'!B27 -> 23 | B27: =IF('ENTRY SHEET'!C27=0,"",'ENTRY SHEET'!C27) ->  | C27: =IF((H27="EGG"),'ENTRY SHEET'!D27,0) -> 0 | D27: =IF((H27="EGG"),'ENTRY SHEET'!E27,0) -> 0 | E27: =IF((H27="EGG"),'ENTRY SHEET'!F27,0) -> 0 | F27: 0 | H27: ='ENTRY SHEET'!M27 -> 0
A28: ='ENTRY SHEET'!B28 -> 24 | B28: =IF('ENTRY SHEET'!C28=0,"",'ENTRY SHEET'!C28) ->  | C28: =IF((H28="EGG"),'ENTRY SHEET'!D28,0) -> 0 | D28: =IF((H28="EGG"),'ENTRY SHEET'!E28,0) -> 0 | E28: =IF((H28="EGG"),'ENTRY SHEET'!F28,0) -> 0 | F28: 0 | H28: ='ENTRY SHEET'!M28 -> 0
A29: ='ENTRY SHEET'!B29 -> 25 | B29: =IF('ENTRY SHEET'!C29=0,"",'ENTRY SHEET'!C29) ->  | C29: =IF((H29="EGG"),'ENTRY SHEET'!D29,0) -> 0 | D29: =IF((H29="EGG"),'ENTRY SHEET'!E29,0) -> 0 | E29: =IF((H29="EGG"),'ENTRY SHEET'!F29,0) -> 0 | F29: 0 | H29: ='ENTRY SHEET'!M29 -> 0
A30: ='ENTRY SHEET'!B30 -> 26 | B30: =IF('ENTRY SHEET'!C30=0,"",'ENTRY SHEET'!C30) -> SUNDAY | C30: =IF((H30="EGG"),'ENTRY SHEET'!D30,0) -> 0 | D30: =IF((H30="EGG"),'ENTRY SHEET'!E30,0) -> 0 | E30: =IF((H30="EGG"),'ENTRY SHEET'!F30,0) -> 0 | F30: 0 | H30: ='ENTRY SHEET'!M30 -> 0
A31: ='ENTRY SHEET'!B31 -> 27 | B31: =IF('ENTRY SHEET'!C31=0,"",'ENTRY SHEET'!C31) ->  | C31: =IF((H31="EGG"),'ENTRY SHEET'!D31,0) -> 0 | D31: =IF((H31="EGG"),'ENTRY SHEET'!E31,0) -> 0 | E31: =IF((H31="EGG"),'ENTRY SHEET'!F31,0) -> 0 | F31: 0 | H31: ='ENTRY SHEET'!M31 -> 0
A32: ='ENTRY SHEET'!B32 -> 28 | B32: =IF('ENTRY SHEET'!C32=0,"",'ENTRY SHEET'!C32) ->  | C32: =IF((H32="EGG"),'ENTRY SHEET'!D32,0) -> 0 | D32: =IF((H32="EGG"),'ENTRY SHEET'!E32,0) -> 0 | E32: =IF((H32="EGG"),'ENTRY SHEET'!F32,0) -> 0 | F32: 0 | H32: ='ENTRY SHEET'!M32 -> 0
A33: ='ENTRY SHEET'!B33 -> 29 | B33: =IF('ENTRY SHEET'!C33=0,"",'ENTRY SHEET'!C33) ->  | C33: =IF((H33="EGG"),'ENTRY SHEET'!D33,0) -> 0 | D33: =IF((H33="EGG"),'ENTRY SHEET'!E33,0) -> 0 | E33: =IF((H33="EGG"),'ENTRY SHEET'!F33,0) -> 0 | F33: 0 | H33: ='ENTRY SHEET'!M33 -> 0
A34: ='ENTRY SHEET'!B34 -> 30 | B34: =IF('ENTRY SHEET'!C34=0,"",'ENTRY SHEET'!C34) ->  | C34: =IF((H34="EGG"),'ENTRY SHEET'!D34,0) -> 0 | D34: =IF((H34="EGG"),'ENTRY SHEET'!E34,0) -> 0 | E34: =IF((H34="EGG"),'ENTRY SHEET'!F34,0) -> 0 | F34: 0 | H34: ='ENTRY SHEET'!M34 -> 0
A35: ='ENTRY SHEET'!B35 -> 31 | B35: =IF('ENTRY SHEET'!C35=0,"",'ENTRY SHEET'!C35) ->  | C35: =IF((H35="EGG"),'ENTRY SHEET'!D35,0) -> 0 | D35: =IF((H35="EGG"),'ENTRY SHEET'!E35,0) -> 0 | E35: =IF((H35="EGG"),'ENTRY SHEET'!F35,0) -> 0 | F35: 0 | H35: ='ENTRY SHEET'!M35 -> 0
A36: ='ENTRY SHEET'!B36 -> 0 | D36: =SUM(D5:D35) -> 0 | E36: 0 | F36: =SUM(F5:F35) -> 0
A39: Certified that Two(2) Eggs per week suplied to students, Rice Required for NextMonth :
A41: Sign. Of the Implementing Agency 1)…………………………………………..2)…………………………………………
A43: ="Pass Order : Sum of Rs.: " &TEXT(F36,"##,##,##.00") -> Pass Order : Sum of Rs.: .00 | G43: Sign. Of the Head Master
A44: ="(Rupees "&rswords(F36)&")" -> (Rupees Rupees Nil)
A45: may be sanctioned & Credited into MDM implementing Agency Account | G45: Mandal Educational Officer

Sheet 9-10-MDM&EGG
A1: ="MID-DAY MEALS BILL FOR THE MONTH OF " & TEXT(MONTH,"MMMM-YYYY") -> MID-DAY MEALS BILL FOR THE MONTH OF January-2020
A2: MANDAL : | C2: =MANDAL -> XYZ | E2: =SCHOOL -> ZPHS ABC | K2: HS BILL
A3: =" NAME OF THE IA : "& GROUP -> NAME OF THE IA : ABCDEF | G3: A/c No.: | H3: =ACCNO -> 1324678911
A4: DAY | B4: Holiday | C4: TOTAL ENROLLMENT | D4: TOTAL PRESENT | E4: MDM TAKEN | F4: ="Amount in Rs.@ " & COSTPERCHILDHS -> Amount in Rs.@ 8.18 | G4: Opening Balance of Rice in Kg.Gms | H4: Rice Received during the month in Kg.Gms | I4: Rice Utilized in Kg.Gms @150gm | J4: Closing Balance of Rice in Kg.Gms | K4: Menu
A5: ='ENTRY SHEET'!B5 -> 1 | B5: =IF('ENTRY SHEET'!C5=0,"",'ENTRY SHEET'!C5) ->  | C5: ='ENTRY SHEET'!G5 -> 155 | D5: ='ENTRY SHEET'!H5 -> 0 | E5: ='ENTRY SHEET'!I5 -> 0 | F5: =E5*COSTPERCHILDHS -> 0 | G5: =HSBALANCE -> 110 | H5: ='ENTRY SHEET'!K5 -> 0 | I5: =E5*0.15 -> 0 | J5: =G5+H5-I5 -> 110 | K5: ='ENTRY SHEET'!L5&IF('ENTRY SHEET'!M5="EGG","+"&'ENTRY SHEET'!M5,"") -> 
A6: ='ENTRY SHEET'!B6 -> 2 | B6: =IF('ENTRY SHEET'!C6=0,"",'ENTRY SHEET'!C6) ->  | C6: ='ENTRY SHEET'!G6 -> 155 | D6: ='ENTRY SHEET'!H6 -> 0 | E6: ='ENTRY SHEET'!I6 -> 0 | F6: 0 | G6: =J5 -> 110 | H6: ='ENTRY SHEET'!K6 -> 0 | I6: =E6*0.15 -> 0 | J6: =G6+H6-I6 -> 110 | K6: ='ENTRY SHEET'!L6&IF('ENTRY SHEET'!M6="EGG","+"&'ENTRY SHEET'!M6,"") -> 
A7: ='ENTRY SHEET'!B7 -> 3 | B7: =IF('ENTRY SHEET'!C7=0,"",'ENTRY SHEET'!C7) ->  | C7: ='ENTRY SHEET'!G7 -> 155 | D7: ='ENTRY SHEET'!H7 -> 0 | E7: ='ENTRY SHEET'!I7 -> 0 | F7: 0 | G7: =J6 -> 110 | H7: ='ENTRY SHEET'!K7 -> 0 | I7: 0 | J7: 110 | K7: ='ENTRY SHEET'!L7&IF('ENTRY SHEET'!M7="EGG","+"&'ENTRY SHEET'!M7,"") -> 
A8: ='ENTRY SHEET'!B8 -> 4 | B8: =IF('ENTRY SHEET'!C8=0,"",'ENTRY SHEET'!C8) ->  | C8: ='ENTRY SHEET'!G8 -> 155 | D8: ='ENTRY SHEET'!H8 -> 0 | E8: ='ENTRY SHEET'!I8 -> 0 | F8: 0 | G8: 110 | H8: ='ENTRY SHEET'!K8 -> 0 | I8: 0 | J8: 110 | K8: ='ENTRY SHEET'!L8&IF('ENTRY SHEET'!M8="EGG","+"&'ENTRY SHEET'!M8,"") -> 
A9: ='ENTRY SHEET'!B9 -> 5 | B9: =IF('ENTRY SHEET'!C9=0,"",'ENTRY SHEET'!C9) -> SUNDAY | C9: ='ENTRY SHEET'!G9 -> 155 | D9: ='ENTRY SHEET'!H9 -> 0 | E9: ='ENTRY SHEET'!I9 -> 0 | F9: 0 | G9: 110 | H9: ='ENTRY SHEET'!K9 -> 0 | I9: 0 | J9: 110 | K9: ='ENTRY SHEET'!L9&IF('ENTRY SHEET'!M9="EGG","+"&'ENTRY SHEET'!M9,"") -> 
A10: ='ENTRY SHEET'!B10 -> 6 | B10: =IF('ENTRY SHEET'!C10=0,"",'ENTRY SHEET'!C10) ->  | C10: ='ENTRY SHEET'!G10 -> 155 | D10: ='ENTRY SHEET'!H10 -> 0 | E10: ='ENTRY SHEET'!I10 -> 0 | F10: 0 | G10: 110 | H10: ='ENTRY SHEET'!K10 -> 0 | I10: 0 | J10: 110 | K10: ='ENTRY SHEET'!L10&IF('ENTRY SHEET'!M10="EGG","+"&'ENTRY SHEET'!M10,"") -> 
A11: ='ENTRY SHEET'!B11 -> 7 | B11: =IF('ENTRY SHEET'!C11=0,"",'ENTRY SHEET'!C11) ->  | C11: ='ENTRY SHEET'!G11 -> 155 | D11: ='ENTRY SHEET'!H11 -> 0 | E11: ='ENTRY SHEET'!I11 -> 0 | F11: 0 | G11: 110 | H11: ='ENTRY SHEET'!K11 -> 0 | I11: 0 | J11: 110 | K11: ='ENTRY SHEET'!L11&IF('ENTRY SHEET'!M11="EGG","+"&'ENTRY SHEET'!M11,"") -> 
A12: ='ENTRY SHEET'!B12 -> 8 | B12: =IF('ENTRY SHEET'!C12=0,"",'ENTRY SHEET'!C12) ->  | C12: ='ENTRY SHEET'!G12 -> 155 | D12: ='ENTRY SHEET'!H12 -> 0 | E12: ='ENTRY SHEET'!I12 -> 0 | F12: 0 | G12: 110 | H12: ='ENTRY SHEET'!K12 -> 0 | I12: 0 | J12: 110 | K12: ='ENTRY SHEET'!L12&IF('ENTRY SHEET'!M12="EGG","+"&'ENTRY SHEET'!M12,"") -> 
A13: ='ENTRY SHEET'!B13 -> 9 | B13: =IF('ENTRY SHEET'!C13=0,"",'ENTRY SHEET'!C13) ->  | C13: ='ENTRY SHEET'!G13 -> 155 | D13: ='ENTRY SHEET'!H13 -> 0 | E13: ='ENTRY SHEET'!I13 -> 0 | F13: 0 | G13: 110 | H13: ='ENTRY SHEET'!K13 -> 0 | I13: 0 | J13: 110 | K13: ='ENTRY SHEET'!L13&IF('ENTRY SHEET'!M13="EGG","+"&'ENTRY SHEET'!M13,"") -> 
A14: ='ENTRY SHEET'!B14 -> 10 | B14: =IF('ENTRY SHEET'!C14=0,"",'ENTRY SHEET'!C14) ->  | C14: ='ENTRY SHEET'!G14 -> 155 | D14: ='ENTRY SHEET'!H14 -> 0 | E14: ='ENTRY SHEET'!I14 -> 0 | F14: 0 | G14: 110 | H14: ='ENTRY SHEET'!K14 -> 0 | I14: 0 | J14: 110 | K14: ='ENTRY SHEET'!L14&IF('ENTRY SHEET'!M14="EGG","+"&'ENTRY SHEET'!M14,"") -> 
A15: ='ENTRY SHEET'!B15 -> 11 | B15: =IF('ENTRY SHEET'!C15=0,"",'ENTRY SHEET'!C15) ->  | C15: ='ENTRY SHEET'!G15 -> 155 | D15: ='ENTRY SHEET'!H15 -> 0 | E15: ='ENTRY SHEET'!I15 -> 0 | F15: 0 | G15: 110 | H15: ='ENTRY SHEET'!K15 -> 0 | I15: 0 | J15: 110 | K15: ='ENTRY SHEET'!L15&IF('ENTRY SHEET'!M15="EGG","+"&'ENTRY SHEET'!M15,"") -> 
A16: ='ENTRY SHEET'!B16 -> 12 | B16: =IF('ENTRY SHEET'!C16=0,"",'ENTRY SHEET'!C16) -> SUNDAY | C16: ='ENTRY SHEET'!G16 -> 155 | D16: ='ENTRY SHEET'!H16 -> 0 | E16: ='ENTRY SHEET'!I16 -> 0 | F16: 0 | G16: 110 | H16: ='ENTRY SHEET'!K16 -> 0 | I16: 0 | J16: 110 | K16: ='ENTRY SHEET'!L16&IF('ENTRY SHEET'!M16="EGG","+"&'ENTRY SHEET'!M16,"") -> 
A17: ='ENTRY SHEET'!B17 -> 13 | B17: =IF('ENTRY SHEET'!C17=0,"",'ENTRY SHEET'!C17) ->  | C17: ='ENTRY SHEET'!G17 -> 155 | D17: ='ENTRY SHEET'!H17 -> 0 | E17: ='ENTRY SHEET'!I17 -> 0 | F17: 0 | G17: 110 | H17: ='ENTRY SHEET'!K17 -> 0 | I17: 0 | J17: 110 | K17: ='ENTRY SHEET'!L17&IF('ENTRY SHEET'!M17="EGG","+"&'ENTRY SHEET'!M17,"") -> 
A18: ='ENTRY SHEET'!B18 -> 14 | B18: =IF('ENTRY SHEET'!C18=0,"",'ENTRY SHEET'!C18) ->  | C18: ='ENTRY SHEET'!G18 -> 155 | D18: ='ENTRY SHEET'!H18 -> 0 | E18: ='ENTRY SHEET'!I18 -> 0 | F18: 0 | G18: 110 | H18: ='ENTRY SHEET'!K18 -> 0 | I18: 0 | J18: 110 | K18: ='ENTRY SHEET'!L18&IF('ENTRY SHEET'!M18="EGG","+"&'ENTRY SHEET'!M18,"") -> 
A19: ='ENTRY SHEET'!B19 -> 15 | B19: =IF('ENTRY SHEET'!C19=0,"",'ENTRY SHEET'!C19) ->  | C19: ='ENTRY SHEET'!G19 -> 155 | D19: ='ENTRY SHEET'!H19 -> 0 | E19: ='ENTRY SHEET'!I19 -> 0 | F19: 0 | G19: 110 | H19: ='ENTRY SHEET'!K19 -> 0 | I19: 0 | J19: 110 | K19: ='ENTRY SHEET'!L19&IF('ENTRY SHEET'!M19="EGG","+"&'ENTRY SHEET'!M19,"") -> 
A20: ='ENTRY SHEET'!B20 -> 16 | B20: =IF('ENTRY SHEET'!C20=0,"",'ENTRY SHEET'!C20) ->  | C20: 166 | D20: ='ENTRY SHEET'!H20 -> 0 | E20: ='ENTRY SHEET'!I20 -> 0 | F20: 0 | G20: 110 | H20: ='ENTRY SHEET'!K20 -> 0 | I20: 0 | J20: 110 | K20: ='ENTRY SHEET'!L20&IF('ENTRY SHEET'!M20="EGG","+"&'ENTRY SHEET'!M20,"") -> 
A21: ='ENTRY SHEET'!B21 -> 17 | B21: =IF('ENTRY SHEET'!C21=0,"",'ENTRY SHEET'!C21) ->  | C21: ='ENTRY SHEET'!G21 -> 213 | D21: ='ENTRY SHEET'!H21 -> 0 | E21: ='ENTRY SHEET'!I21 -> 0 | F21: 0 | G21: 110 | H21: ='ENTRY SHEET'!K21 -> 0 | I21: 0 | J21: 110 | K21: ='ENTRY SHEET'!L21&IF('ENTRY SHEET'!M21="EGG","+"&'ENTRY SHEET'!M21,"") -> 
A22: ='ENTRY SHEET'!B22 -> 18 | B22: =IF('ENTRY SHEET'!C22=0,"",'ENTRY SHEET'!C22) ->  | C22: ='ENTRY SHEET'!G22 -> 213 | D22: ='ENTRY SHEET'!H22 -> 0 | E22: ='ENTRY SHEET'!I22 -> 0 | F22: 0 | G22: 110 | H22: ='ENTRY SHEET'!K22 -> 0 | I22: 0 | J22: 110 | K22: ='ENTRY SHEET'!L22&IF('ENTRY SHEET'!M22="EGG","+"&'ENTRY SHEET'!M22,"") -> 
A23: ='ENTRY SHEET'!B23 -> 19 | B23: =IF('ENTRY SHEET'!C23=0,"",'ENTRY SHEET'!C23) -> SUNDAY | C23: ='ENTRY SHEET'!G23 -> 213 | D23: ='ENTRY SHEET'!H23 -> 0 | E23: ='ENTRY SHEET'!I23 -> 0 | F23: 0 | G23: 110 | H23: ='ENTRY SHEET'!K23 -> 0 | I23: 0 | J23: 110 | K23: ='ENTRY SHEET'!L23&IF('ENTRY SHEET'!M23="EGG","+"&'ENTRY SHEET'!M23,"") -> 
A24: ='ENTRY SHEET'!B24 -> 20 | B24: =IF('ENTRY SHEET'!C24=0,"",'ENTRY SHEET'!C24) ->  | C24: ='ENTRY SHEET'!G24 -> 213 | D24: ='ENTRY SHEET'!H24 -> 0 | E24: ='ENTRY SHEET'!I24 -> 0 | F24: 0 | G24: 110 | H24: ='ENTRY SHEET'!K24 -> 0 | I24: 0 | J24: 110 | K24: ='ENTRY SHEET'!L24&IF('ENTRY SHEET'!M24="EGG","+"&'ENTRY SHEET'!M24,"") -> 
A25: ='ENTRY SHEET'!B25 -> 21 | B25: =IF('ENTRY SHEET'!C25=0,"",'ENTRY SHEET'!C25) ->  | C25: ='ENTRY SHEET'!G25 -> 213 | D25: ='ENTRY SHEET'!H25 -> 0 | E25: ='ENTRY SHEET'!I25 -> 0 | F25: 0 | G25: 110 | H25: ='ENTRY SHEET'!K25 -> 0 | I25: 0 | J25: 110 | K25: ='ENTRY SHEET'!L25&IF('ENTRY SHEET'!M25="EGG","+"&'ENTRY SHEET'!M25,"") -> 
A26: ='ENTRY SHEET'!B26 -> 22 | B26: =IF('ENTRY SHEET'!C26=0,"",'ENTRY SHEET'!C26) ->  | C26: ='ENTRY SHEET'!G26 -> 213 | D26: ='ENTRY SHEET'!H26 -> 0 | E26: ='ENTRY SHEET'!I26 -> 0 | F26: 0 | G26: 110 | H26: ='ENTRY SHEET'!K26 -> 0 | I26: 0 | J26: 110 | K26: ='ENTRY SHEET'!L26&IF('ENTRY SHEET'!M26="EGG","+"&'ENTRY SHEET'!M26,"") -> 
A27: ='ENTRY SHEET'!B27 -> 23 | B27: =IF('ENTRY SHEET'!C27=0,"",'ENTRY SHEET'!C27) ->  | C27: 152 | D27: ='ENTRY SHEET'!H27 -> 0 | E27: ='ENTRY SHEET'!I27 -> 0 | F27: 0 | G27: 110 | H27: ='ENTRY SHEET'!K27 -> 0 | I27: 0 | J27: 110 | K27: ='ENTRY SHEET'!L27&IF('ENTRY SHEET'!M27="EGG","+"&'ENTRY SHEET'!M27,"") -> 
A28: ='ENTRY SHEET'!B28 -> 24 | B28: =IF('ENTRY SHEET'!C28=0,"",'ENTRY SHEET'!C28) ->  | C28: ='ENTRY SHEET'!G28 -> 213 | D28: ='ENTRY SHEET'!H28 -> 0 | E28: ='ENTRY SHEET'!I28 -> 0 | F28: 0 | G28: 110 | H28: ='ENTRY SHEET'!K28 -> 0 | I28: 0 | J28: 110 | K28: ='ENTRY SHEET'!L28&IF('ENTRY SHEET'!M28="EGG","+"&'ENTRY SHEET'!M28,"") -> 
A29: ='ENTRY SHEET'!B29 -> 25 | B29: =IF('ENTRY SHEET'!C29=0,"",'ENTRY SHEET'!C29) ->  | C29: ='ENTRY SHEET'!G29 -> 213 | D29: ='ENTRY SHEET'!H29 -> 0 | E29: ='ENTRY SHEET'!I29 -> 0 | F29: 0 | G29: 110 | H29: ='ENTRY SHEET'!K29 -> 0 | I29: 0 | J29: 110 | K29: ='ENTRY SHEET'!L29&IF('ENTRY SHEET'!M29="EGG","+"&'ENTRY SHEET'!M29,"") -> 
A30: ='ENTRY SHEET'!B30 -> 26 | B30: =IF('ENTRY SHEET'!C30=0,"",'ENTRY SHEET'!C30) -> SUNDAY | C30: ='ENTRY SHEET'!G30 -> 213 | D30: ='ENTRY SHEET'!H30 -> 0 | E30: ='ENTRY SHEET'!I30 -> 0 | F30: 0 | G30: 110 | H30: ='ENTRY SHEET'!K30 -> 0 | I30: 0 | J30: 110 | K30: ='ENTRY SHEET'!L30&IF('ENTRY SHEET'!M30="EGG","+"&'ENTRY SHEET'!M30,"") -> 
A31: ='ENTRY SHEET'!B31 -> 27 | B31: =IF('ENTRY SHEET'!C31=0,"",'ENTRY SHEET'!C31) ->  | C31: ='ENTRY SHEET'!G31 -> 213 | D31: ='ENTRY SHEET'!H31 -> 0 | E31: ='ENTRY SHEET'!I31 -> 0 | F31: 0 | G31: 110 | H31: ='ENTRY SHEET'!K31 -> 0 | I31: 0 | J31: 110 | K31: ='ENTRY SHEET'!L31&IF('ENTRY SHEET'!M31="EGG","+"&'ENTRY SHEET'!M31,"") -> 
A32: ='ENTRY SHEET'!B32 -> 28 | B32: =IF('ENTRY SHEET'!C32=0,"",'ENTRY SHEET'!C32) ->  | C32: ='ENTRY SHEET'!G32 -> 213 | D32: ='ENTRY SHEET'!H32 -> 0 | E32: ='ENTRY SHEET'!I32 -> 0 | F32: 0 | G32: 110 | H32: ='ENTRY SHEET'!K32 -> 0 | I32: 0 | J32: 110 | K32: ='ENTRY SHEET'!L32&IF('ENTRY SHEET'!M32="EGG","+"&'ENTRY SHEET'!M32,"") -> 
A33: ='ENTRY SHEET'!B33 -> 29 | B33: =IF('ENTRY SHEET'!C33=0,"",'ENTRY SHEET'!C33) ->  | C33: ='ENTRY SHEET'!G33 -> 213 | D33: ='ENTRY SHEET'!H33 -> 0 | E33: ='ENTRY SHEET'!I33 -> 0 | F33: 0 | G33: 110 | H33: ='ENTRY SHEET'!K33 -> 0 | I33: 0 | J33: 110 | K33: ='ENTRY SHEET'!L33&IF('ENTRY SHEET'!M33="EGG","+"&'ENTRY SHEET'!M33,"") -> 
A34: ='ENTRY SHEET'!B34 -> 30 | B34: =IF('ENTRY SHEET'!C34=0,"",'ENTRY SHEET'!C34) ->  | C34: ='ENTRY SHEET'!G34 -> 213 | D34: ='ENTRY SHEET'!H34 -> 0 | E34: ='ENTRY SHEET'!I34 -> 0 | F34: 0 | G34: 110 | H34: ='ENTRY SHEET'!K34 -> 0 | I34: 0 | J34: 110 | K34: ='ENTRY SHEET'!L34&IF('ENTRY SHEET'!M34="EGG","+"&'ENTRY SHEET'!M34,"") -> 
A35: ='ENTRY SHEET'!B35 -> 31 | B35: =IF('ENTRY SHEET'!C35=0,"",'ENTRY SHEET'!C35) ->  | C35: ='ENTRY SHEET'!G35 -> 213 | D35: ='ENTRY SHEET'!H35 -> 0 | E35: ='ENTRY SHEET'!I35 -> 0 | F35: 0 | G35: 110 | H35: ='ENTRY SHEET'!K35 -> 0 | I35: 0 | J35: =G35+H35-I35 -> 110 | K35: ='ENTRY SHEET'!L35&IF('ENTRY SHEET'!M35="EGG","+"&'ENTRY SHEET'!M35,"") -> 
A36: ='ENTRY SHEET'!B36 -> 0 | D36: =SUM(D5:D35) -> 0 | E36: 0 | F36: =SUM(F5:F35) -> 0 | H36: =SUM(H5:H35) -> 0 | I36: =SUM(I5:I35) -> 0 | J36: =J35 -> 110
A38: Certified that Two(2) Eggs per week suplied to students, Rice Required for NextMonth : | J38: =HSRICE & " KG" -> 600 KG
A39: Sign. Of the Implementing Agency 1)…………………………………………..2)…………………………………………
I40: Sign. Of the Head Master
A41: ="Pass Order : Sum of Rs.: " &TEXT(F36,"##,##,##.00") -> Pass Order : Sum of Rs.: .00
A42: ="(Rupees "&rswords(F36)&")" -> (Rupees Rupees Nil)
A43: may be sanctioned & Credited into MDM implementing Agency Account | I43: Mandal Educational Officer

Sheet RICE ACCOUNT
A1: MID-DAY MEALS PROGRAMME - RICE ACCOUNT
A2: MANDAL | B2: =MANDAL -> XYZ | D2: SCHOOL | E2: =SCHOOL -> ZPHS ABC | L2: MONTH | N2: =MONTH -> 2020-01-01
A3: DATE | B3: OPENING BALANCE | F3: RICE RECEIVED / RETURNED | K3: RICE UTILIZED | N3: GROUND BALANCE
B5: UPS | C5: HS | D5: TOTAL | F5: UPS | G5: HS | H5: TOTAL RECEIVED | K5: UPS | L5: HS | M5: TOTAL | N5: UPS | O5: HS | P5: TOTAL
A6: 1 | B6: ='6-8-MDMonthly'!$G5 -> 120 | C6: ='9-10-MDM&EGG'!$G5 -> 110 | D6: =SUM(B6:C6) -> 230 | F6: ='ENTRY SHEET'!J5 -> 0 | G6: ='ENTRY SHEET'!K5 -> 0 | H6: =SUM(F6:G6) -> 0 | K6: ='6-8-MDMonthly'!$I5 -> 0 | L6: ='9-10-MDM&EGG'!$I5 -> 0 | M6: =SUM(K6:L6) -> 0 | N6: =B6+F6-K6 -> 120 | O6: =C6+G6-L6 -> 110 | P6: =SUM(N6:O6) -> 230
A7: 2 | B7: ='6-8-MDMonthly'!$G6 -> 120 | C7: ='9-10-MDM&EGG'!$G6 -> 110 | D7: =SUM(B7:C7) -> 230 | F7: ='ENTRY SHEET'!J6 -> 0 | G7: ='ENTRY SHEET'!K6 -> 0 | H7: =SUM(F7:G7) -> 0 | K7: ='6-8-MDMonthly'!$I6 -> 0 | L7: ='9-10-MDM&EGG'!$I6 -> 0 | M7: =SUM(K7:L7) -> 0 | N7: =B7+F7-K7 -> 120 | O7: =C7+G7-L7 -> 110 | P7: =SUM(N7:O7) -> 230
A8: 3 | B8: ='6-8-MDMonthly'!$G7 -> 120 | C8: ='9-10-MDM&EGG'!$G7 -> 110 | D8: 230 | F8: ='ENTRY SHEET'!J7 -> 0 | G8: ='ENTRY SHEET'!K7 -> 0 | H8: 0 | K8: ='6-8-MDMonthly'!$I7 -> 0 | L8: ='9-10-MDM&EGG'!$I7 -> 0 | M8: 0 | N8: 120 | O8: 110 | P8: =SUM(N8:O8) -> 230
A9: 4 | B9: ='6-8-MDMonthly'!$G8 -> 120 | C9: ='9-10-MDM&EGG'!$G8 -> 110 | D9: 230 | F9: ='ENTRY SHEET'!J8 -> 0 | G9: ='ENTRY SHEET'!K8 -> 0 | H9: 0 | K9: ='6-8-MDMonthly'!$I8 -> 0 | L9: ='9-10-MDM&EGG'!$I8 -> 0 | M9: 0 | N9: =B9+F9-K9 -> 120 | O9: 110 | P9: 230
A10: 5 | B10: ='6-8-MDMonthly'!$G9 -> 120 | C10: ='9-10-MDM&EGG'!$G9 -> 110 | D10: 230 | F10: ='ENTRY SHEET'!J9 -> 0 | G10: ='ENTRY SHEET'!K9 -> 0 | H10: 0 | K10: ='6-8-MDMonthly'!$I9 -> 0 | L10: ='9-10-MDM&EGG'!$I9 -> 0 | M10: 0 | N10: 120 | O10: 110 | P10: 230
A11: 6 | B11: ='6-8-MDMonthly'!$G10 -> 120 | C11: ='9-10-MDM&EGG'!$G10 -> 110 | D11: 230 | F11: ='ENTRY SHEET'!J10 -> 0 | G11: ='ENTRY SHEET'!K10 -> 0 | H11: 0 | K11: ='6-8-MDMonthly'!$I10 -> 0 | L11: ='9-10-MDM&EGG'!$I10 -> 0 | M11: 0 | N11: 120 | O11: 110 | P11: 230
A12: 7 | B12: ='6-8-MDMonthly'!$G11 -> 120 | C12: ='9-10-MDM&EGG'!$G11 -> 110 | D12: 230 | F12: ='ENTRY SHEET'!J11 -> 0 | G12: ='ENTRY SHEET'!K11 -> 0 | H12: 0 | K12: ='6-8-MDMonthly'!$I11 -> 0 | L12: ='9-10-MDM&EGG'!$I11 -> 0 | M12: 0 | N12: 120 | O12: 110 | P12: 230
A13: 8 | B13: ='6-8-MDMonthly'!$G12 -> 120 | C13: ='9-10-MDM&EGG'!$G12 -> 110 | D13: 230 | F13: ='ENTRY SHEET'!J12 -> 0 | G13: ='ENTRY SHEET'!K12 -> 0 | H13: 0 | K13: ='6-8-MDMonthly'!$I12 -> 0 | L13: ='9-10-MDM&EGG'!$I12 -> 0 | M13: 0 | N13: 120 | O13: 110 | P13: 230
A14: 9 | B14: ='6-8-MDMonthly'!$G13 -> 120 | C14: ='9-10-MDM&EGG'!$G13 -> 110 | D14: 230 | F14: ='ENTRY SHEET'!J13 -> 0 | G14: ='ENTRY SHEET'!K13 -> 0 | H14: 0 | K14: ='6-8-MDMonthly'!$I13 -> 0 | L14: ='9-10-MDM&EGG'!$I13 -> 0 | M14: 0 | N14: 120 | O14: 110 | P14: 230
A15: 10 | B15: ='6-8-MDMonthly'!$G14 -> 120 | C15: ='9-10-MDM&EGG'!$G14 -> 110 | D15: 230 | F15: ='ENTRY SHEET'!J14 -> 0 | G15: ='ENTRY SHEET'!K14 -> 0 | H15: 0 | K15: ='6-8-MDMonthly'!$I14 -> 0 | L15: ='9-10-MDM&EGG'!$I14 -> 0 | M15: 0 | N15: 120 | O15: 110 | P15: 230
A16: 11 | B16: ='6-8-MDMonthly'!$G15 -> 120 | C16: ='9-10-MDM&EGG'!$G15 -> 110 | D16: 230 | F16: ='ENTRY SHEET'!J15 -> 0 | G16: ='ENTRY SHEET'!K15 -> 0 | H16: 0 | K16: ='6-8-MDMonthly'!$I15 -> 0 | L16: ='9-10-MDM&EGG'!$I15 -> 0 | M16: 0 | N16: 120 | O16: 110 | P16: 230
A17: 12 | B17: ='6-8-MDMonthly'!$G16 -> 120 | C17: ='9-10-MDM&EGG'!$G16 -> 110 | D17: 230 | F17: ='ENTRY SHEET'!J16 -> 0 | G17: ='ENTRY SHEET'!K16 -> 0 | H17: 0 | K17: ='6-8-MDMonthly'!$I16 -> 0 | L17: ='9-10-MDM&EGG'!$I16 -> 0 | M17: 0 | N17: 120 | O17: 110 | P17: 230
A18: 13 | B18: ='6-8-MDMonthly'!$G17 -> 120 | C18: ='9-10-MDM&EGG'!$G17 -> 110 | D18: 230 | F18: ='ENTRY SHEET'!J17 -> 0 | G18: ='ENTRY SHEET'!K17 -> 0 | H18: 0 | K18: ='6-8-MDMonthly'!$I17 -> 0 | L18: ='9-10-MDM&EGG'!$I17 -> 0 | M18: 0 | N18: 120 | O18: 110 | P18: 230
A19: 14 | B19: ='6-8-MDMonthly'!$G18 -> 120 | C19: ='9-10-MDM&EGG'!$G18 -> 110 | D19: 230 | F19: ='ENTRY SHEET'!J18 -> 0 | G19: ='ENTRY SHEET'!K18 -> 0 | H19: 0 | K19: ='6-8-MDMonthly'!$I18 -> 0 | L19: ='9-10-MDM&EGG'!$I18 -> 0 | M19: 0 | N19: 120 | O19: 110 | P19: 230
A20: 15 | B20: ='6-8-MDMonthly'!$G19 -> 120 | C20: ='9-10-MDM&EGG'!$G19 -> 110 | D20: 230 | F20: ='ENTRY SHEET'!J19 -> 0 | G20: ='ENTRY SHEET'!K19 -> 0 | H20: 0 | K20: ='6-8-MDMonthly'!$I19 -> 0 | L20: ='9-10-MDM&EGG'!$I19 -> 0 | M20: 0 | N20: 120 | O20: 110 | P20: 230
A21: 16 | B21: ='6-8-MDMonthly'!$G20 -> 120 | C21: ='9-10-MDM&EGG'!$G20 -> 110 | D21: 230 | F21: ='ENTRY SHEET'!J20 -> 0 | G21: ='ENTRY SHEET'!K20 -> 0 | H21: 0 | K21: ='6-8-MDMonthly'!$I20 -> 0 | L21: ='9-10-MDM&EGG'!$I20 -> 0 | M21: 0 | N21: 120 | O21: 110 | P21: 230
A22: 17 | B22: ='6-8-MDMonthly'!$G21 -> 120 | C22: ='9-10-MDM&EGG'!$G21 -> 110 | D22: 230 | F22: ='ENTRY SHEET'!J21 -> 0 | G22: ='ENTRY SHEET'!K21 -> 0 | H22: 0 | K22: ='6-8-MDMonthly'!$I21 -> 0 | L22: ='9-10-MDM&EGG'!$I21 -> 0 | M22: 0 | N22: 120 | O22: 110 | P22: 230
A23: 18 | B23: ='6-8-MDMonthly'!$G22 -> 120 | C23: ='9-10-MDM&EGG'!$G22 -> 110 | D23: 230 | F23: ='ENTRY SHEET'!J22 -> 0 | G23: ='ENTRY SHEET'!K22 -> 0 | H23: 0 | K23: ='6-8-MDMonthly'!$I22 -> 0 | L23: ='9-10-MDM&EGG'!$I22 -> 0 | M23: 0 | N23: 120 | O23: 110 | P23: 230
A24: 19 | B24: ='6-8-MDMonthly'!$G23 -> 120 | C24: ='9-10-MDM&EGG'!$G23 -> 110 | D24: 230 | F24: ='ENTRY SHEET'!J23 -> 0 | G24: ='ENTRY SHEET'!K23 -> 0 | H24: 0 | K24: ='6-8-MDMonthly'!$I23 -> 0 | L24: ='9-10-MDM&EGG'!$I23 -> 0 | M24: 0 | N24: 120 | O24: 110 | P24: 230
A25: 20 | B25: ='6-8-MDMonthly'!$G24 -> 120 | C25: ='9-10-MDM&EGG'!$G24 -> 110 | D25: 230 | F25: ='ENTRY SHEET'!J24 -> 0 | G25: ='ENTRY SHEET'!K24 -> 0 | H25: 0 | K25: ='6-8-MDMonthly'!$I24 -> 0 | L25: ='9-10-MDM&EGG'!$I24 -> 0 | M25: 0 | N25: 120 | O25: 110 | P25: 230
A26: 21 | B26: ='6-8-MDMonthly'!$G25 -> 120 | C26: ='9-10-MDM&EGG'!$G25 -> 110 | D26: 230 | F26: ='ENTRY SHEET'!J25 -> 0 | G26: ='ENTRY SHEET'!K25 -> 0 | H26: 0 | K26: ='6-8-MDMonthly'!$I25 -> 0 | L26: ='9-10-MDM&EGG'!$I25 -> 0 | M26: 0 | N26: 120 | O26: 110 | P26: 230
A27: 22 | B27: ='6-8-MDMonthly'!$G26 -> 120 | C27: ='9-10-MDM&EGG'!$G26 -> 110 | D27: 230 | F27: ='ENTRY SHEET'!J26 -> 0 | G27: ='ENTRY SHEET'!K26 -> 0 | H27: 0 | K27: ='6-8-MDMonthly'!$I26 -> 0 | L27: ='9-10-MDM&EGG'!$I26 -> 0 | M27: 0 | N27: 120 | O27: 110 | P27: 230
A28: 23 | B28: ='6-8-MDMonthly'!$G27 -> 120 | C28: ='9-10-MDM&EGG'!$G27 -> 110 | D28: 230 | F28: ='ENTRY SHEET'!J27 -> 0 | G28: ='ENTRY SHEET'!K27 -> 0 | H28: 0 | K28: ='6-8-MDMonthly'!$I27 -> 0 | L28: ='9-10-MDM&EGG'!$I27 -> 0 | M28: 0 | N28: 120 | O28: 110 | P28: 230
A29: 24 | B29: ='6-8-MDMonthly'!$G28 -> 120 | C29: ='9-10-MDM&EGG'!$G28 -> 110 | D29: 230 | F29: ='ENTRY SHEET'!J28 -> 0 | G29: ='ENTRY SHEET'!K28 -> 0 | H29: 0 | K29: ='6-8-MDMonthly'!$I28 -> 0 | L29: ='9-10-MDM&EGG'!$I28 -> 0 | M29: 0 | N29: 120 | O29: 110 | P29: 230
A30: 25 | B30: ='6-8-MDMonthly'!$G29 -> 120 | C30: ='9-10-MDM&EGG'!$G29 -> 110 | D30: 230 | F30: ='ENTRY SHEET'!J29 -> 0 | G30: ='ENTRY SHEET'!K29 -> 0 | H30: 0 | K30: ='6-8-MDMonthly'!$I29 -> 0 | L30: ='9-10-MDM&EGG'!$I29 -> 0 | M30: 0 | N30: 120 | O30: 110 | P30: 230
A31: 26 | B31: ='6-8-MDMonthly'!$G30 -> 120 | C31: ='9-10-MDM&EGG'!$G30 -> 110 | D31: 230 | F31: ='ENTRY SHEET'!J30 -> 0 | G31: ='ENTRY SHEET'!K30 -> 0 | H31: 0 | K31: ='6-8-MDMonthly'!$I30 -> 0 | L31: ='9-10-MDM&EGG'!$I30 -> 0 | M31: 0 | N31: 120 | O31: 110 | P31: =SUM(N31:O31) -> 230
A32: 27 | B32: ='6-8-MDMonthly'!$G31 -> 120 | C32: ='9-10-MDM&EGG'!$G31 -> 110 | D32: 230 | F32: ='ENTRY SHEET'!J31 -> 0 | G32: ='ENTRY SHEET'!K31 -> 0 | H32: 0 | K32: ='6-8-MDMonthly'!$I31 -> 0 | L32: ='9-10-MDM&EGG'!$I31 -> 0 | M32: 0 | N32: 120 | O32: 110 | P32: =SUM(N32:O32) -> 230
A33: 28 | B33: ='6-8-MDMonthly'!$G32 -> 120 | C33: ='9-10-MDM&EGG'!$G32 -> 110 | D33: 230 | F33: ='ENTRY SHEET'!J32 -> 0 | G33: ='ENTRY SHEET'!K32 -> 0 | H33: 0 | K33: ='6-8-MDMonthly'!$I32 -> 0 | L33: ='9-10-MDM&EGG'!$I32 -> 0 | M33: 0 | N33: 120 | O33: 110 | P33: 230
A34: 29 | B34: ='6-8-MDMonthly'!$G33 -> 120 | C34: ='9-10-MDM&EGG'!$G33 -> 110 | D34: 230 | F34: ='ENTRY SHEET'!J33 -> 0 | G34: ='ENTRY SHEET'!K33 -> 0 | H34: 0 | K34: ='6-8-MDMonthly'!$I33 -> 0 | L34: ='9-10-MDM&EGG'!$I33 -> 0 | M34: 0 | N34: 120 | O34: 110 | P34: 230
A35: 30 | B35: ='6-8-MDMonthly'!$G34 -> 120 | C35: ='9-10-MDM&EGG'!$G34 -> 110 | D35: 230 | F35: ='ENTRY SHEET'!J34 -> 0 | G35: ='ENTRY SHEET'!K34 -> 0 | H35: 0 | K35: ='6-8-MDMonthly'!$I34 -> 0 | L35: ='9-10-MDM&EGG'!$I34 -> 0 | M35: 0 | N35: 120 | O35: 110 | P35: 230
A36: 31 | B36: ='6-8-MDMonthly'!$G35 -> 120 | C36: ='9-10-MDM&EGG'!$G35 -> 110 | D36: 230 | F36: ='ENTRY SHEET'!J35 -> 0 | G36: ='ENTRY SHEET'!K35 -> 0 | H36: 0 | K36: ='6-8-MDMonthly'!$I35 -> 0 | L36: ='9-10-MDM&EGG'!$I35 -> 0 | M36: 0 | N36: 120 | O36: 110 | P36: 230
F37: =SUM(F6:F36) -> 0 | G37: =SUM(G6:G36) -> 0 | H37: =SUM(H6:H36) -> 0 | K37: =SUM(K6:K36) -> 0 | L37: =SUM(L6:L36) -> 0 | M37: =SUM(K37:L37) -> 0 | Q37: =SUM(Q6:Q36) -> 0

Sheet TOTALS-LS (hidden)
A1: MID-DAY MEALS PROGRAMME
C2: ="MANDAL : " & MANDAL -> MANDAL : XYZ | J2: ="SCHOOL : " & SCHOOL -> SCHOOL : ZPHS ABC | U2: ="MONTH:" & MONTH -> MONTH:43831 | AA2: =MONTH -> 43831 | AC2: =MONTH -> 43831
A3: DATE | B3: ENROLLED | F3: PRSENT | J3: MDM TAKEN | N3: RICE GIVEN | Q3: RICE ACCOUNT | T3: RICE RECEIVED / RETURNED | W3: AMOUNT | AA3: RICE RECEIVED | AC3: MENU
B4: UPS | C4: HS | D4: TOTAL | F4: UPS | G4: HS | H4: TOTAL | J4: UPS | K4: HS | L4: TOTAL | N4: UPS RICE | O4: HS RICE | P4: TOTAL RICE | Q4: OPENING BALANCE | R4: GIVEN | S4: BALANCE | T4: UPS | U4: HS | V4: TOAL | W4: UPS | X4: HS | Y4: TOTAL | AA4: UPS | AB4: HS
B5: LAST MONTH RICE BALANCE -------> | Q5: ='RICE ACCOUNT'!$D$6 -> 230 | W5: =COSTPCHILDUPS -> 6.18
A6: 1 | B6: =#REF! ->  | C6: ='9-10-MDM&EGG'!C5 -> 155 | D6: =SUM(B6:C6) ->  | F6: =#REF! ->  | G6: ='9-10-MDM&EGG'!D5 -> 0 | H6: =SUM(F6:G6) ->  | J6: =#REF! ->  | K6: ='9-10-MDM&EGG'!E5 -> 0 | L6: =SUM(J6:K6) ->  | N6: =J6*150/1000 ->  | O6: =K6*150/1000 -> 0 | P6: =N6+O6 ->  | Q6: =Q5 -> 230 | R6: =(J6*150/1000)+(K6*150/1000) ->  | S6: =Q6-R6 ->  | T6: ='RICE ACCOUNT'!F6 -> 0 | U6: ='RICE ACCOUNT'!G6 -> 0 | V6: =SUM(T6:U6) -> 0 | W6: =J6*COSTPCHILDUPS ->  | X6: =K6*COSTPCHILDUPS -> 0 | Y6: =SUM(W6:X6) ->  | AA6: ='RICE ACCOUNT'!F6 -> 0 | AB6: ='RICE ACCOUNT'!G6 -> 0
A7: 2 | B7: =#REF! ->  | C7: ='9-10-MDM&EGG'!C6 -> 155 | D7: =SUM(B7:C7) ->  | F7: =#REF! ->  | G7: ='9-10-MDM&EGG'!D6 -> 0 | H7: =SUM(F7:G7) ->  | J7: =#REF! ->  | K7: ='9-10-MDM&EGG'!E6 -> 0 | L7: =SUM(J7:K7) ->  | N7: =J7*150/1000 ->  | O7: =K7*150/1000 -> 0 | P7: =N7+O7 ->  | Q7: =S6+V6 ->  | R7: =(J7*150/1000)+(K7*150/1000) ->  | S7: =Q7-R7 ->  | T7: ='RICE ACCOUNT'!F7 -> 0 | U7: ='RICE ACCOUNT'!G7 -> 0 | V7: =SUM(T7:U7) -> 0 | W7: =J7*COSTPCHILDUPS ->  | X7: =K7*COSTPCHILDUPS -> 0 | Y7: =SUM(W7:X7) ->  | AA7: ='RICE ACCOUNT'!F7 -> 0 | AB7: ='RICE ACCOUNT'!G7 -> 0
A8: 3 | B8: =#REF! ->  | C8: ='9-10-MDM&EGG'!C7 -> 155 | F8: =#REF! ->  | G8: ='9-10-MDM&EGG'!D7 -> 0 | J8: =#REF! ->  | K8: ='9-10-MDM&EGG'!E7 -> 0 | O8: 0 | Q8: =S7+V7 ->  | S8: =Q8-R8 ->  | T8: ='RICE ACCOUNT'!F8 -> 0 | U8: ='RICE ACCOUNT'!G8 -> 0 | V8: 0 | W8: =J8*COSTPCHILDUPS ->  | X8: 0 | AA8: ='RICE ACCOUNT'!F8 -> 0 | AB8: ='RICE ACCOUNT'!G8 -> 0
A9: 4 | B9: =#REF! ->  | C9: ='9-10-MDM&EGG'!C8 -> 155 | F9: =#REF! ->  | G9: ='9-10-MDM&EGG'!D8 -> 0 | J9: =#REF! ->  | K9: ='9-10-MDM&EGG'!E8 -> 0 | O9: 0 | T9: ='RICE ACCOUNT'!F9 -> 0 | U9: ='RICE ACCOUNT'!G9 -> 0 | V9: 0 | X9: 0 | AA9: ='RICE ACCOUNT'!F9 -> 0 | AB9: ='RICE ACCOUNT'!G9 -> 0
A10: 5 | B10: =#REF! ->  | C10: ='9-10-MDM&EGG'!C9 -> 155 | F10: =#REF! ->  | G10: ='9-10-MDM&EGG'!D9 -> 0 | J10: =#REF! ->  | K10: ='9-10-MDM&EGG'!E9 -> 0 | O10: 0 | T10: ='RICE ACCOUNT'!F10 -> 0 | U10: ='RICE ACCOUNT'!G10 -> 0 | V10: 0 | X10: 0 | AA10: ='RICE ACCOUNT'!F10 -> 0 | AB10: ='RICE ACCOUNT'!G10 -> 0
A11: 6 | B11: =#REF! ->  | C11: ='9-10-MDM&EGG'!C10 -> 155 | F11: =#REF! ->  | G11: ='9-10-MDM&EGG'!D10 -> 0 | J11: =#REF! ->  | K11: ='9-10-MDM&EGG'!E10 -> 0 | O11: 0 | T11: ='RICE ACCOUNT'!F11 -> 0 | U11: ='RICE ACCOUNT'!G11 -> 0 | V11: 0 | X11: 0 | AA11: ='RICE ACCOUNT'!F11 -> 0 | AB11: ='RICE ACCOUNT'!G11 -> 0
A12: 7 | B12: =#REF! ->  | C12: ='9-10-MDM&EGG'!C11 -> 155 | F12: =#REF! ->  | G12: ='9-10-MDM&EGG'!D11 -> 0 | J12: =#REF! ->  | K12: ='9-10-MDM&EGG'!E11 -> 0 | O12: 0 | T12: ='RICE ACCOUNT'!F12 -> 0 | U12: ='RICE ACCOUNT'!G12 -> 0 | V12: 0 | X12: 0 | AA12: ='RICE ACCOUNT'!F12 -> 0 | AB12: ='RICE ACCOUNT'!G12 -> 0
A13: 8 | B13: =#REF! ->  | C13: ='9-10-MDM&EGG'!C12 -> 155 | F13: =#REF! ->  | G13: ='9-10-MDM&EGG'!D12 -> 0 | J13: =#REF! ->  | K13: ='9-10-MDM&EGG'!E12 -> 0 | O13: 0 | T13: ='RICE ACCOUNT'!F13 -> 0 | U13: ='RICE ACCOUNT'!G13 -> 0 | V13: 0 | X13: 0 | AA13: ='RICE ACCOUNT'!F13 -> 0 | AB13: ='RICE ACCOUNT'!G13 -> 0
A14: 9 | B14: =#REF! ->  | C14: ='9-10-MDM&EGG'!C13 -> 155 | F14: =#REF! ->  | G14: ='9-10-MDM&EGG'!D13 -> 0 | J14: =#REF! ->  | K14: ='9-10-MDM&EGG'!E13 -> 0 | O14: 0 | T14: ='RICE ACCOUNT'!F14 -> 0 | U14: ='RICE ACCOUNT'!G14 -> 0 | V14: 0 | X14: 0 | AA14: ='RICE ACCOUNT'!F14 -> 0 | AB14: ='RICE ACCOUNT'!G14 -> 0
A15: 10 | B15: =#REF! ->  | C15: ='9-10-MDM&EGG'!C14 -> 155 | F15: =#REF! ->  | G15: ='9-10-MDM&EGG'!D14 -> 0 | J15: =#REF! ->  | K15: ='9-10-MDM&EGG'!E14 -> 0 | O15: 0 | T15: ='RICE ACCOUNT'!F15 -> 0 | U15: ='RICE ACCOUNT'!G15 -> 0 | V15: 0 | X15: 0 | AA15: ='RICE ACCOUNT'!F15 -> 0 | AB15: ='RICE ACCOUNT'!G15 -> 0
A16: 11 | B16: =#REF! ->  | C16: ='9-10-MDM&EGG'!C15 -> 155 | F16: =#REF! ->  | G16: ='9-10-MDM&EGG'!D15 -> 0 | J16: =#REF! ->  | K16: ='9-10-MDM&EGG'!E15 -> 0 | O16: 0 | T16: ='RICE ACCOUNT'!F16 -> 0 | U16: ='RICE ACCOUNT'!G16 -> 0 | V16: 0 | X16: 0 | AA16: ='RICE ACCOUNT'!F16 -> 0 | AB16: ='RICE ACCOUNT'!G16 -> 0
A17: 12 | B17: =#REF! ->  | C17: ='9-10-MDM&EGG'!C16 -> 155 | F17: =#REF! ->  | G17: ='9-10-MDM&EGG'!D16 -> 0 | J17: =#REF! ->  | K17: ='9-10-MDM&EGG'!E16 -> 0 | O17: 0 | T17: ='RICE ACCOUNT'!F17 -> 0 | U17: ='RICE ACCOUNT'!G17 -> 0 | V17: 0 | X17: 0 | AA17: ='RICE ACCOUNT'!F17 -> 0 | AB17: ='RICE ACCOUNT'!G17 -> 0
A18: 13 | B18: =#REF! ->  | C18: ='9-10-MDM&EGG'!C17 -> 155 | F18: =#REF! ->  | G18: ='9-10-MDM&EGG'!D17 -> 0 | J18: =#REF! ->  | K18: ='9-10-MDM&EGG'!E17 -> 0 | O18: 0 | T18: ='RICE ACCOUNT'!F18 -> 0 | U18: ='RICE ACCOUNT'!G18 -> 0 | V18: 0 | X18: 0 | AA18: ='RICE ACCOUNT'!F18 -> 0 | AB18: ='RICE ACCOUNT'!G18 -> 0
A19: 14 | B19: =#REF! ->  | C19: ='9-10-MDM&EGG'!C18 -> 155 | F19: =#REF! ->  | G19: ='9-10-MDM&EGG'!D18 -> 0 | J19: =#REF! ->  | K19: ='9-10-MDM&EGG'!E18 -> 0 | O19: 0 | T19: ='RICE ACCOUNT'!F19 -> 0 | U19: ='RICE ACCOUNT'!G19 -> 0 | V19: 0 | X19: 0 | AA19: ='RICE ACCOUNT'!F19 -> 0 | AB19: ='RICE ACCOUNT'!G19 -> 0
A20: 15 | B20: =#REF! ->  | C20: ='9-10-MDM&EGG'!C19 -> 155 | F20: =#REF! ->  | G20: ='9-10-MDM&EGG'!D19 -> 0 | J20: =#REF! ->  | K20: ='9-10-MDM&EGG'!E19 -> 0 | O20: 0 | T20: ='RICE ACCOUNT'!F20 -> 0 | U20: ='RICE ACCOUNT'!G20 -> 0 | V20: 0 | X20: 0 | AA20: ='RICE ACCOUNT'!F20 -> 0 | AB20: ='RICE ACCOUNT'!G20 -> 0
A21: 16 | B21: =#REF! ->  | C21: ='9-10-MDM&EGG'!C20 -> 166 | F21: =#REF! ->  | G21: ='9-10-MDM&EGG'!D20 -> 0 | J21: =#REF! ->  | K21: ='9-10-MDM&EGG'!E20 -> 0 | O21: 0 | T21: ='RICE ACCOUNT'!F21 -> 0 | U21: ='RICE ACCOUNT'!G21 -> 0 | V21: 0 | X21: 0 | AA21: ='RICE ACCOUNT'!F21 -> 0 | AB21: ='RICE ACCOUNT'!G21 -> 0
A22: 17 | B22: =#REF! ->  | C22: ='9-10-MDM&EGG'!C21 -> 213 | F22: =#REF! ->  | G22: ='9-10-MDM&EGG'!D21 -> 0 | J22: =#REF! ->  | K22: ='9-10-MDM&EGG'!E21 -> 0 | O22: 0 | T22: ='RICE ACCOUNT'!F22 -> 0 | U22: ='RICE ACCOUNT'!G22 -> 0 | V22: 0 | X22: 0 | AA22: ='RICE ACCOUNT'!F22 -> 0 | AB22: ='RICE ACCOUNT'!G22 -> 0
A23: 18 | B23: =#REF! ->  | C23: ='9-10-MDM&EGG'!C22 -> 213 | F23: =#REF! ->  | G23: ='9-10-MDM&EGG'!D22 -> 0 | J23: =#REF! ->  | K23: ='9-10-MDM&EGG'!E22 -> 0 | O23: 0 | T23: ='RICE ACCOUNT'!F23 -> 0 | U23: ='RICE ACCOUNT'!G23 -> 0 | V23: 0 | X23: 0 | AA23: ='RICE ACCOUNT'!F23 -> 0 | AB23: ='RICE ACCOUNT'!G23 -> 0
A24: 19 | B24: =#REF! ->  | C24: ='9-10-MDM&EGG'!C23 -> 213 | F24: =#REF! ->  | G24: ='9-10-MDM&EGG'!D23 -> 0 | J24: =#REF! ->  | K24: ='9-10-MDM&EGG'!E23 -> 0 | O24: 0 | T24: ='RICE ACCOUNT'!F24 -> 0 | U24: ='RICE ACCOUNT'!G24 -> 0 | V24: 0 | X24: 0 | AA24: ='RICE ACCOUNT'!F24 -> 0 | AB24: ='RICE ACCOUNT'!G24 -> 0
A25: 20 | B25: =#REF! ->  | C25: ='9-10-MDM&EGG'!C24 -> 213 | F25: =#REF! ->  | G25: ='9-10-MDM&EGG'!D24 -> 0 | J25: =#REF! ->  | K25: ='9-10-MDM&EGG'!E24 -> 0 | O25: 0 | T25: ='RICE ACCOUNT'!F25 -> 0 | U25: ='RICE ACCOUNT'!G25 -> 0 | V25: 0 | X25: 0 | AA25: ='RICE ACCOUNT'!F25 -> 0 | AB25: ='RICE ACCOUNT'!G25 -> 0
A26: 21 | B26: =#REF! ->  | C26: ='9-10-MDM&EGG'!C25 -> 213 | F26: =#REF! ->  | G26: ='9-10-MDM&EGG'!D25 -> 0 | H26: =SUM(F26:G26) ->  | I26: 168 | J26: =#REF! ->  | K26: ='9-10-MDM&EGG'!E25 -> 0 | L26: =SUM(J26:K26) ->  | O26: 0 | T26: ='RICE ACCOUNT'!F26 -> 0 | U26: ='RICE ACCOUNT'!G26 -> 0 | V26: 0 | X26: 0 | AA26: ='RICE ACCOUNT'!F26 -> 0 | AB26: ='RICE ACCOUNT'!G26 -> 0
A27: 22 | B27: =#REF! ->  | C27: ='9-10-MDM&EGG'!C26 -> 213 | F27: =#REF! ->  | G27: ='9-10-MDM&EGG'!D26 -> 0 | J27: =#REF! ->  | K27: ='9-10-MDM&EGG'!E26 -> 0 | O27: 0 | T27: ='RICE ACCOUNT'!F27 -> 0 | U27: ='RICE ACCOUNT'!G27 -> 0 | V27: 0 | X27: 0 | AA27: ='RICE ACCOUNT'!F27 -> 0 | AB27: ='RICE ACCOUNT'!G27 -> 0
A28: 23 | B28: =#REF! ->  | C28: ='9-10-MDM&EGG'!C27 -> 152 | F28: =#REF! ->  | G28: ='9-10-MDM&EGG'!D27 -> 0 | J28: =#REF! ->  | K28: ='9-10-MDM&EGG'!E27 -> 0 | O28: 0 | T28: ='RICE ACCOUNT'!F28 -> 0 | U28: ='RICE ACCOUNT'!G28 -> 0 | V28: 0 | X28: 0 | AA28: ='RICE ACCOUNT'!F28 -> 0 | AB28: ='RICE ACCOUNT'!G28 -> 0
A29: 24 | B29: =#REF! ->  | C29: ='9-10-MDM&EGG'!C28 -> 213 | F29: =#REF! ->  | G29: ='9-10-MDM&EGG'!D28 -> 0 | J29: =#REF! ->  | K29: ='9-10-MDM&EGG'!E28 -> 0 | O29: 0 | T29: ='RICE ACCOUNT'!F29 -> 0 | U29: ='RICE ACCOUNT'!G29 -> 0 | V29: 0 | X29: 0 | AA29: ='RICE ACCOUNT'!F29 -> 0 | AB29: ='RICE ACCOUNT'!G29 -> 0
A30: 25 | B30: =#REF! ->  | C30: ='9-10-MDM&EGG'!C29 -> 213 | F30: =#REF! ->  | G30: ='9-10-MDM&EGG'!D29 -> 0 | J30: =#REF! ->  | K30: ='9-10-MDM&EGG'!E29 -> 0 | O30: 0 | T30: ='RICE ACCOUNT'!F30 -> 0 | U30: ='RICE ACCOUNT'!G30 -> 0 | V30: 0 | X30: 0 | AA30: ='RICE ACCOUNT'!F30 -> 0 | AB30: ='RICE ACCOUNT'!G30 -> 0
A31: 26 | B31: =#REF! ->  | C31: ='9-10-MDM&EGG'!C30 -> 213 | F31: =#REF! ->  | G31: ='9-10-MDM&EGG'!D30 -> 0 | J31: =#REF! ->  | K31: ='9-10-MDM&EGG'!E30 -> 0 | O31: 0 | T31: ='RICE ACCOUNT'!F31 -> 0 | U31: ='RICE ACCOUNT'!G31 -> 0 | V31: 0 | X31: 0 | AA31: ='RICE ACCOUNT'!F31 -> 0 | AB31: ='RICE ACCOUNT'!G31 -> 0
A32: 27 | B32: =#REF! ->  | C32: ='9-10-MDM&EGG'!C31 -> 213 | F32: =#REF! ->  | G32: ='9-10-MDM&EGG'!D31 -> 0 | J32: =#REF! ->  | K32: ='9-10-MDM&EGG'!E31 -> 0 | O32: 0 | T32: ='RICE ACCOUNT'!F32 -> 0 | U32: ='RICE ACCOUNT'!G32 -> 0 | V32: 0 | X32: 0 | AA32: ='RICE ACCOUNT'!F32 -> 0 | AB32: ='RICE ACCOUNT'!G32 -> 0
A33: 28 | B33: =#REF! ->  | C33: ='9-10-MDM&EGG'!C32 -> 213 | F33: =#REF! ->  | G33: ='9-10-MDM&EGG'!D32 -> 0 | J33: =#REF! ->  | K33: ='9-10-MDM&EGG'!E32 -> 0 | O33: 0 | T33: ='RICE ACCOUNT'!F33 -> 0 | U33: ='RICE ACCOUNT'!G33 -> 0 | V33: 0 | X33: 0 | AA33: ='RICE ACCOUNT'!F33 -> 0 | AB33: ='RICE ACCOUNT'!G33 -> 0
A34: 29 | B34: =#REF! ->  | C34: ='9-10-MDM&EGG'!C33 -> 213 | F34: =#REF! ->  | G34: ='9-10-MDM&EGG'!D33 -> 0 | J34: =#REF! ->  | K34: ='9-10-MDM&EGG'!E33 -> 0 | O34: 0 | T34: ='RICE ACCOUNT'!F34 -> 0 | U34: ='RICE ACCOUNT'!G34 -> 0 | V34: 0 | X34: 0 | AA34: ='RICE ACCOUNT'!F34 -> 0 | AB34: ='RICE ACCOUNT'!G34 -> 0
A35: 30 | B35: =#REF! ->  | C35: ='9-10-MDM&EGG'!C34 -> 213 | F35: =#REF! ->  | G35: ='9-10-MDM&EGG'!D34 -> 0 | J35: =#REF! ->  | K35: ='9-10-MDM&EGG'!E34 -> 0 | O35: 0 | T35: ='RICE ACCOUNT'!F35 -> 0 | U35: ='RICE ACCOUNT'!G35 -> 0 | V35: 0 | X35: 0 | AA35: ='RICE ACCOUNT'!F35 -> 0 | AB35: ='RICE ACCOUNT'!G35 -> 0
A36: 31 | B36: =#REF! ->  | C36: ='9-10-MDM&EGG'!C35 -> 213 | F36: =#REF! ->  | G36: ='9-10-MDM&EGG'!D35 -> 0 | J36: =#REF! ->  | K36: ='9-10-MDM&EGG'!E35 -> 0 | O36: 0 | T36: ='RICE ACCOUNT'!F36 -> 0 | U36: ='RICE ACCOUNT'!G36 -> 0 | V36: 0 | X36: 0 | AA36: ='RICE ACCOUNT'!F36 -> 0 | AB36: ='RICE ACCOUNT'!G36 -> 0
B37: =#REF! ->  | C37: ='9-10-MDM&EGG'!C36 -> 0 | F37: =SUM(F6:F36) ->  | G37: =SUM(G6:G36) -> 0 | J37: =SUM(J6:J36) ->  | K37: =SUM(K6:K36) -> 0 | L37: =SUM(L6:L36) ->  | N37: =SUM(N6:N36) ->  | O37: =SUM(O6:O36) -> 0 | P37: =SUM(P6:P36) ->  | R37: =SUM(R6:R36) ->  | S37: =S36+V36 ->  | T37: =SUM(T6:T36) -> 0 | U37: =SUM(U6:U36) -> 0 | V37: =SUM(V6:V36) -> 0 | W37: =J37*COSTPCHILDUPS ->  | X37: 0 | Y37: =SUM(W37:X37) ->  | AA37: =SUM(AA6:AA36) -> 0 | AB37: =SUM(AB6:AB36) -> 0
A39: RICE ACCOUNT
A40: RICE OPENING BALANCE | F40: RICE RECEIVED DURING THE MONTH | J40: TOTAL RICE | N40: RICE UTILIZED DURING MONTH | P40: BALANCE RICE | R40: UPS AMOUNT | T40: HS AMOUNT | V40: ROUNDED UPS AMOUNT | X40: ROUNDED HS AMOUNT | Y40: TOTAL AMOUNT | AB40: REMARKS
A41: =UPSBALANCE+HSBALANCE -> 230 | F41: =V37 -> 0 | J41: =SUM(A41:I41) -> 230 | N41: =R37 ->  | P41: =J41-N41 ->  | R41: =W37 ->  | T41: =X37 -> 0 | V41: =ROUND(W37,0) ->  | X41: =ROUND(X37,0) -> 0 | Y41: =SUM(V41:X41) -> 
AC45: ఆలుగడ్డ టమాట
AC46: గుడ్డు+సాంబారు
AC47: అరటిపండు+సాంబారు
AC48: వంకాయ+ఆలుగడ్డ
AC49: సోరకాయ పప్పు
AC50: గుడ్డు+సాంబారు
AC51: బీరకాయ టమాట
AC52: వంకాయ+ఆలుగడ్డ
X53: వంకాయ పప్పు | AC53: గుడ్డు+సాంబారు
AC54: పప్పుచారు
AC55: సోరకాయ పప్పు
AC56: గుడ్డు+సాంబారు
AC57: వంకాయ+ఆలుగడ్డ
AC58: బీరకాయ పప్పు
AC59: గుడ్డు+సాంబారు

Sheet TOTALS-LS (2) (hidden)
A1: MID-DAY MEALS PROGRAMME
C2: ="MANDAL : " & MANDAL -> MANDAL : XYZ | J2: ="SCHOOL : " & SCHOOL -> SCHOOL : ZPHS ABC | AD2: =MONTH -> 43831 | AF2: =MONTH -> 43831
A3: DATE | B3: ENROLLED | F3: PRSENT | J3: MDM TAKEN | N3: RICE ISSUED | T3: RICE RECEIVED | W3: BALANCE RICE | Z3: AMOUNT | AD3: RICE RECEIVED | AF3: MENU
B4: UPS | C4: HS | D4: TOTAL | F4: UPS | G4: HS | H4: TOTAL | J4: UPS | K4: HS | L4: TOTAL | N4: UPS OPENING RICE BAL. | O4: RICE GIVEN TO UPS | P4: UPS RICE BALANCE | Q4: HS OPENING RICE BAL. | R4: RICE GIVEN TO UPS | S4: HS RICE BALANCE | T4: UPS | U4: HS | V4: TOAL | W4: UPS RICE BALANCE | X4: HS RICE BALANCE | Y4: TOTAL RICE BALANCE | Z4: UPS | AA4: HS | AB4: TOTAL | AD4: UPS | AE4: HS
B5: LAST MONTH RICE BALANCE -------> | N5: ='PRIMARY INFORMATION'!$C$10 -> 120 | P5: =SUM(N5:O5) -> 120 | Q5: ='PRIMARY INFORMATION'!$C$11 -> 110 | S5: =SUM(Q5:R5) -> 110 | Z5: =COSTPCHILDUPS -> 6.18
A6: 1 | B6: =#REF! ->  | C6: ='9-10-MDM&EGG'!C5 -> 155 | D6: =SUM(B6:C6) ->  | F6: =#REF! ->  | G6: ='9-10-MDM&EGG'!D5 -> 0 | H6: =SUM(F6:G6) ->  | J6: =#REF! ->  | K6: ='9-10-MDM&EGG'!E5 -> 0 | L6: =SUM(J6:K6) ->  | N6: =P5+T6 ->  | O6: =J6*150/1000 ->  | P6: =N6-O6 ->  | Q6: =S5+U6 -> 110 | R6: =K6*150/1000 -> 0 | S6: =Q6-R6 -> 110 | T6: ='ENTRY SHEET'!#REF! ->  | U6: ='ENTRY SHEET'!K5 -> 0 | V6: =SUM(T6:U6) ->  | W6: =N6+T6-O6 ->  | X6: =Q6+U6-R6 -> 110 | Y6: =SUM(W6:X6) ->  | Z6: =J6*COSTPCHILDUPS ->  | AA6: =K6*COSTPCHILDUPS -> 0 | AB6: =SUM(Z6:AA6) ->  | AD6: ='RICE ACCOUNT'!F6 -> 0 | AE6: ='RICE ACCOUNT'!G6 -> 0
A7: 2 | B7: =#REF! ->  | C7: ='9-10-MDM&EGG'!C6 -> 155 | D7: =SUM(B7:C7) ->  | F7: =#REF! ->  | G7: ='9-10-MDM&EGG'!D6 -> 0 | H7: =SUM(F7:G7) ->  | J7: =#REF! ->  | K7: ='9-10-MDM&EGG'!E6 -> 0 | L7: =SUM(J7:K7) ->  | N7: =P6+T7 ->  | O7: =J7*150/1000 ->  | P7: =N7-O7 ->  | Q7: =S6+U7 -> 110 | R7: =K7*150/1000 -> 0 | S7: =Q7-R7 -> 110 | T7: ='ENTRY SHEET'!#REF! ->  | U7: ='ENTRY SHEET'!K6 -> 0 | V7: =SUM(T7:U7) ->  | W7: =N7+T7-O7 ->  | X7: =Q7+U7-R7 -> 110 | Y7: =SUM(W7:X7) ->  | Z7: =J7*COSTPCHILDUPS ->  | AA7: =K7*COSTPCHILDUPS -> 0 | AB7: =SUM(Z7:AA7) ->  | AD7: ='RICE ACCOUNT'!F7 -> 0 | AE7: ='RICE ACCOUNT'!G7 -> 0
A8: 3 | B8: =#REF! ->  | C8: ='9-10-MDM&EGG'!C7 -> 155 | F8: =#REF! ->  | G8: ='9-10-MDM&EGG'!D7 -> 0 | J8: =#REF! ->  | K8: ='9-10-MDM&EGG'!E7 -> 0 | Q8: 110 | R8: 0 | S8: 110 | T8: ='ENTRY SHEET'!#REF! ->  | U8: ='ENTRY SHEET'!K7 -> 0 | V8: =SUM(T8:U8) ->  | W8: =N8+T8-O8 ->  | X8: 110 | Z8: =J8*COSTPCHILDUPS ->  | AA8: =K8*COSTPCHILDUPS -> 0 | AD8: ='RICE ACCOUNT'!F8 -> 0 | AE8: ='RICE ACCOUNT'!G8 -> 0
A9: 4 | B9: =#REF! ->  | C9: ='9-10-MDM&EGG'!C8 -> 155 | F9: =#REF! ->  | G9: ='9-10-MDM&EGG'!D8 -> 0 | J9: =#REF! ->  | K9: ='9-10-MDM&EGG'!E8 -> 0 | Q9: 110 | R9: 0 | S9: 110 | T9: ='ENTRY SHEET'!#REF! ->  | U9: ='ENTRY SHEET'!K8 -> 0 | X9: 110 | AA9: 0 | AD9: ='RICE ACCOUNT'!F9 -> 0 | AE9: ='RICE ACCOUNT'!G9 -> 0
A10: 5 | B10: =#REF! ->  | C10: ='9-10-MDM&EGG'!C9 -> 155 | F10: =#REF! ->  | G10: ='9-10-MDM&EGG'!D9 -> 0 | J10: =#REF! ->  | K10: ='9-10-MDM&EGG'!E9 -> 0 | Q10: 110 | R10: 0 | S10: 110 | T10: ='ENTRY SHEET'!#REF! ->  | U10: ='ENTRY SHEET'!K9 -> 0 | X10: 110 | AA10: 0 | AD10: ='RICE ACCOUNT'!F10 -> 0 | AE10: ='RICE ACCOUNT'!G10 -> 0
A11: 6 | B11: =#REF! ->  | C11: ='9-10-MDM&EGG'!C10 -> 155 | F11: =#REF! ->  | G11: ='9-10-MDM&EGG'!D10 -> 0 | J11: =#REF! ->  | K11: ='9-10-MDM&EGG'!E10 -> 0 | Q11: 110 | R11: 0 | S11: 110 | T11: ='ENTRY SHEET'!#REF! ->  | U11: ='ENTRY SHEET'!K10 -> 0 | X11: 110 | AA11: 0 | AD11: ='RICE ACCOUNT'!F11 -> 0 | AE11: ='RICE ACCOUNT'!G11 -> 0
A12: 7 | B12: =#REF! ->  | C12: 214 | F12: =#REF! ->  | G12: ='9-10-MDM&EGG'!D11 -> 0 | J12: =#REF! ->  | K12: ='9-10-MDM&EGG'!E11 -> 0 | Q12: 110 | R12: 0 | S12: 110 | T12: ='ENTRY SHEET'!#REF! ->  | U12: ='ENTRY SHEET'!K11 -> 0 | W12: =N12+T12-O12 ->  | X12: 110 | Y12: =SUM(W12:X12) ->  | AA12: 0 | AD12: ='RICE ACCOUNT'!F12 -> 0 | AE12: ='RICE ACCOUNT'!G12 -> 0
A13: 8 | B13: =#REF! ->  | C13: ='9-10-MDM&EGG'!C12 -> 155 | F13: =#REF! ->  | G13: ='9-10-MDM&EGG'!D12 -> 0 | J13: =#REF! ->  | K13: ='9-10-MDM&EGG'!E12 -> 0 | Q13: 110 | R13: 0 | S13: 110 | T13: ='ENTRY SHEET'!#REF! ->  | U13: ='ENTRY SHEET'!K12 -> 0 | W13: =N13+T13-O13 ->  | X13: 110 | Y13: =SUM(W13:X13) ->  | AA13: 0 | AD13: ='RICE ACCOUNT'!F13 -> 0 | AE13: ='RICE ACCOUNT'!G13 -> 0
A14: 9 | B14: =#REF! ->  | C14: ='9-10-MDM&EGG'!C13 -> 155 | F14: =#REF! ->  | G14: ='9-10-MDM&EGG'!D13 -> 0 | J14: =#REF! ->  | K14: ='9-10-MDM&EGG'!E13 -> 0 | Q14: 110 | R14: 0 | S14: 110 | T14: ='ENTRY SHEET'!#REF! ->  | U14: ='ENTRY SHEET'!K13 -> 0 | X14: 110 | AA14: 0 | AD14: ='RICE ACCOUNT'!F14 -> 0 | AE14: ='RICE ACCOUNT'!G14 -> 0
A15: 10 | B15: =#REF! ->  | C15: ='9-10-MDM&EGG'!C14 -> 155 | F15: =#REF! ->  | G15: ='9-10-MDM&EGG'!D14 -> 0 | J15: =#REF! ->  | K15: ='9-10-MDM&EGG'!E14 -> 0 | Q15: 110 | R15: 0 | S15: 110 | T15: ='ENTRY SHEET'!#REF! ->  | U15: ='ENTRY SHEET'!K14 -> 0 | X15: 110 | AA15: 0 | AD15: ='RICE ACCOUNT'!F15 -> 0 | AE15: ='RICE ACCOUNT'!G15 -> 0
A16: 11 | B16: =#REF! ->  | C16: ='9-10-MDM&EGG'!C15 -> 155 | F16: =#REF! ->  | G16: ='9-10-MDM&EGG'!D15 -> 0 | J16: =#REF! ->  | K16: ='9-10-MDM&EGG'!E15 -> 0 | Q16: 110 | R16: 0 | S16: 110 | T16: ='ENTRY SHEET'!#REF! ->  | U16: ='ENTRY SHEET'!K15 -> 0 | X16: 110 | AA16: 0 | AD16: ='RICE ACCOUNT'!F16 -> 0 | AE16: ='RICE ACCOUNT'!G16 -> 0
A17: 12 | B17: =#REF! ->  | C17: 214 | F17: =#REF! ->  | G17: ='9-10-MDM&EGG'!D16 -> 0 | J17: =#REF! ->  | K17: ='9-10-MDM&EGG'!E16 -> 0 | Q17: 110 | R17: 0 | S17: 110 | T17: ='ENTRY SHEET'!#REF! ->  | U17: ='ENTRY SHEET'!K16 -> 0 | X17: 110 | AA17: 0 | AD17: ='RICE ACCOUNT'!F17 -> 0 | AE17: ='RICE ACCOUNT'!G17 -> 0
A18: 13 | B18: =#REF! ->  | C18: ='9-10-MDM&EGG'!C17 -> 155 | F18: =#REF! ->  | G18: ='9-10-MDM&EGG'!D17 -> 0 | J18: =#REF! ->  | K18: ='9-10-MDM&EGG'!E17 -> 0 | Q18: 110 | R18: 0 | S18: 110 | T18: ='ENTRY SHEET'!#REF! ->  | U18: ='ENTRY SHEET'!K17 -> 0 | X18: 110 | AA18: 0 | AD18: ='RICE ACCOUNT'!F18 -> 0 | AE18: ='RICE ACCOUNT'!G18 -> 0
A19: 14 | B19: =#REF! ->  | C19: ='9-10-MDM&EGG'!C18 -> 155 | F19: =#REF! ->  | G19: ='9-10-MDM&EGG'!D18 -> 0 | J19: =#REF! ->  | K19: ='9-10-MDM&EGG'!E18 -> 0 | Q19: 110 | R19: 0 | S19: 110 | T19: ='ENTRY SHEET'!#REF! ->  | U19: ='ENTRY SHEET'!K18 -> 0 | X19: 110 | AA19: 0 | AD19: ='RICE ACCOUNT'!F19 -> 0 | AE19: ='RICE ACCOUNT'!G19 -> 0
A20: 15 | B20: =#REF! ->  | C20: 214 | F20: =#REF! ->  | G20: ='9-10-MDM&EGG'!D19 -> 0 | J20: =#REF! ->  | K20: ='9-10-MDM&EGG'!E19 -> 0 | Q20: 110 | R20: 0 | S20: 110 | T20: ='ENTRY SHEET'!#REF! ->  | U20: ='ENTRY SHEET'!K19 -> 0 | X20: 110 | AA20: 0 | AD20: ='RICE ACCOUNT'!F20 -> 0 | AE20: ='RICE ACCOUNT'!G20 -> 0
A21: 16 | B21: =#REF! ->  | C21: 214 | F21: =#REF! ->  | G21: ='9-10-MDM&EGG'!D20 -> 0 | J21: =#REF! ->  | K21: ='9-10-MDM&EGG'!E20 -> 0 | Q21: 110 | R21: 0 | S21: 110 | T21: ='ENTRY SHEET'!#REF! ->  | U21: ='ENTRY SHEET'!K20 -> 0 | X21: 110 | AA21: 0 | AD21: ='RICE ACCOUNT'!F21 -> 0 | AE21: ='RICE ACCOUNT'!G21 -> 0
A22: 17 | B22: =#REF! ->  | C22: 214 | F22: =#REF! ->  | G22: ='9-10-MDM&EGG'!D21 -> 0 | J22: =#REF! ->  | K22: ='9-10-MDM&EGG'!E21 -> 0 | Q22: 110 | R22: 0 | S22: 110 | T22: ='ENTRY SHEET'!#REF! ->  | U22: ='ENTRY SHEET'!K21 -> 0 | X22: 110 | AA22: 0 | AD22: ='RICE ACCOUNT'!F22 -> 0 | AE22: ='RICE ACCOUNT'!G22 -> 0
A23: 18 | B23: =#REF! ->  | C23: 214 | F23: =#REF! ->  | G23: ='9-10-MDM&EGG'!D22 -> 0 | J23: =#REF! ->  | K23: ='9-10-MDM&EGG'!E22 -> 0 | Q23: 110 | R23: 0 | S23: 110 | T23: ='ENTRY SHEET'!#REF! ->  | U23: ='ENTRY SHEET'!K22 -> 0 | X23: 110 | AA23: 0 | AD23: ='RICE ACCOUNT'!F23 -> 0 | AE23: ='RICE ACCOUNT'!G23 -> 0
A24: 19 | B24: =#REF! ->  | C24: ='9-10-MDM&EGG'!C23 -> 213 | F24: =#REF! ->  | G24: ='9-10-MDM&EGG'!D23 -> 0 | J24: =#REF! ->  | K24: ='9-10-MDM&EGG'!E23 -> 0 | Q24: 110 | R24: 0 | S24: 110 | T24: ='ENTRY SHEET'!#REF! ->  | U24: ='ENTRY SHEET'!K23 -> 0 | X24: 110 | AA24: 0 | AD24: ='RICE ACCOUNT'!F24 -> 0 | AE24: ='RICE ACCOUNT'!G24 -> 0
A25: 20 | B25: =#REF! ->  | C25: 214 | F25: =#REF! ->  | G25: ='9-10-MDM&EGG'!D24 -> 0 | J25: =#REF! ->  | K25: ='9-10-MDM&EGG'!E24 -> 0 | Q25: 110 | R25: 0 | S25: 110 | T25: ='ENTRY SHEET'!#REF! ->  | U25: ='ENTRY SHEET'!K24 -> 0 | X25: 110 | AA25: 0 | AD25: ='RICE ACCOUNT'!F25 -> 0 | AE25: ='RICE ACCOUNT'!G25 -> 0
A26: 21 | B26: =#REF! ->  | C26: 214 | F26: =#REF! ->  | G26: ='9-10-MDM&EGG'!D25 -> 0 | I26: 168 | J26: =#REF! ->  | K26: ='9-10-MDM&EGG'!E25 -> 0 | Q26: 110 | R26: 0 | S26: 110 | T26: ='ENTRY SHEET'!#REF! ->  | U26: ='ENTRY SHEET'!K25 -> 0 | X26: 110 | AA26: 0 | AD26: ='RICE ACCOUNT'!F26 -> 0 | AE26: ='RICE ACCOUNT'!G26 -> 0
A27: 22 | B27: =#REF! ->  | C27: 214 | F27: =#REF! ->  | G27: ='9-10-MDM&EGG'!D26 -> 0 | J27: =#REF! ->  | K27: ='9-10-MDM&EGG'!E26 -> 0 | Q27: 110 | R27: 0 | S27: 110 | T27: ='ENTRY SHEET'!#REF! ->  | U27: ='ENTRY SHEET'!K26 -> 0 | X27: 110 | AA27: 0 | AD27: ='RICE ACCOUNT'!F27 -> 0 | AE27: ='RICE ACCOUNT'!G27 -> 0
A28: 23 | B28: =#REF! ->  | C28: 214 | F28: =#REF! ->  | G28: ='9-10-MDM&EGG'!D27 -> 0 | J28: =#REF! ->  | K28: ='9-10-MDM&EGG'!E27 -> 0 | Q28: 110 | R28: 0 | S28: 110 | T28: ='ENTRY SHEET'!#REF! ->  | U28: ='ENTRY SHEET'!K27 -> 0 | X28: 110 | AA28: 0 | AD28: ='RICE ACCOUNT'!F28 -> 0 | AE28: ='RICE ACCOUNT'!G28 -> 0
A29: 24 | B29: =#REF! ->  | C29: ='9-10-MDM&EGG'!C28 -> 213 | F29: =#REF! ->  | G29: ='9-10-MDM&EGG'!D28 -> 0 | J29: =#REF! ->  | K29: ='9-10-MDM&EGG'!E28 -> 0 | Q29: 110 | R29: 0 | S29: 110 | T29: ='ENTRY SHEET'!#REF! ->  | U29: ='ENTRY SHEET'!K28 -> 0 | X29: 110 | AA29: 0 | AD29: ='RICE ACCOUNT'!F29 -> 0 | AE29: ='RICE ACCOUNT'!G29 -> 0
A30: 25 | B30: =#REF! ->  | C30: ='9-10-MDM&EGG'!C29 -> 213 | F30: =#REF! ->  | G30: ='9-10-MDM&EGG'!D29 -> 0 | J30: =#REF! ->  | K30: ='9-10-MDM&EGG'!E29 -> 0 | Q30: 110 | R30: 0 | S30: 110 | T30: ='ENTRY SHEET'!#REF! ->  | U30: ='ENTRY SHEET'!K29 -> 0 | X30: 110 | AA30: 0 | AD30: ='RICE ACCOUNT'!F30 -> 0 | AE30: ='RICE ACCOUNT'!G30 -> 0
A31: 26 | B31: =#REF! ->  | C31: ='9-10-MDM&EGG'!C30 -> 213 | F31: =#REF! ->  | G31: ='9-10-MDM&EGG'!D30 -> 0 | J31: =#REF! ->  | K31: ='9-10-MDM&EGG'!E30 -> 0 | Q31: 110 | R31: 0 | S31: 110 | T31: ='ENTRY SHEET'!#REF! ->  | U31: ='ENTRY SHEET'!K30 -> 0 | X31: 110 | AA31: 0 | AD31: ='RICE ACCOUNT'!F31 -> 0 | AE31: ='RICE ACCOUNT'!G31 -> 0
A32: 27 | B32: =#REF! ->  | C32: ='9-10-MDM&EGG'!C31 -> 213 | F32: =#REF! ->  | G32: ='9-10-MDM&EGG'!D31 -> 0 | J32: =#REF! ->  | K32: ='9-10-MDM&EGG'!E31 -> 0 | Q32: 110 | R32: 0 | S32: 110 | T32: ='ENTRY SHEET'!#REF! ->  | U32: ='ENTRY SHEET'!K31 -> 0 | X32: 110 | AA32: 0 | AD32: ='RICE ACCOUNT'!F32 -> 0 | AE32: ='RICE ACCOUNT'!G32 -> 0
A33: 28 | B33: =#REF! ->  | C33: ='9-10-MDM&EGG'!C32 -> 213 | F33: =#REF! ->  | G33: ='9-10-MDM&EGG'!D32 -> 0 | J33: =#REF! ->  | K33: ='9-10-MDM&EGG'!E32 -> 0 | Q33: 110 | R33: 0 | S33: 110 | T33: ='ENTRY SHEET'!#REF! ->  | U33: ='ENTRY SHEET'!K32 -> 0 | X33: 110 | AA33: 0 | AD33: ='RICE ACCOUNT'!F33 -> 0 | AE33: ='RICE ACCOUNT'!G33 -> 0
A34: 29 | B34: =#REF! ->  | C34: ='9-10-MDM&EGG'!C33 -> 213 | F34: =#REF! ->  | G34: ='9-10-MDM&EGG'!D33 -> 0 | J34: =#REF! ->  | K34: ='9-10-MDM&EGG'!E33 -> 0 | Q34: 110 | R34: 0 | S34: 110 | T34: ='ENTRY SHEET'!#REF! ->  | U34: ='ENTRY SHEET'!K33 -> 0 | X34: 110 | AA34: 0 | AD34: ='RICE ACCOUNT'!F34 -> 0 | AE34: ='RICE ACCOUNT'!G34 -> 0
A35: 30 | B35: =#REF! ->  | C35: ='9-10-MDM&EGG'!C34 -> 213 | F35: =#REF! ->  | G35: ='9-10-MDM&EGG'!D34 -> 0 | J35: =#REF! ->  | K35: ='9-10-MDM&EGG'!E34 -> 0 | Q35: 110 | R35: 0 | S35: 110 | T35: ='ENTRY SHEET'!#REF! ->  | U35: ='ENTRY SHEET'!K34 -> 0 | X35: 110 | AA35: 0 | AD35: ='RICE ACCOUNT'!F35 -> 0 | AE35: ='RICE ACCOUNT'!G35 -> 0
A36: 31 | B36: =#REF! ->  | C36: ='9-10-MDM&EGG'!C35 -> 213 | F36: =#REF! ->  | G36: ='9-10-MDM&EGG'!D35 -> 0 | J36: =#REF! ->  | K36: ='9-10-MDM&EGG'!E35 -> 0 | Q36: 110 | R36: 0 | S36: 110 | T36: ='ENTRY SHEET'!#REF! ->  | U36: ='ENTRY SHEET'!K35 -> 0 | X36: 110 | AA36: 0 | AD36: ='RICE ACCOUNT'!F36 -> 0 | AE36: ='RICE ACCOUNT'!G36 -> 0
B37: =#REF! ->  | C37: ='9-10-MDM&EGG'!C36 -> 0 | F37: =SUM(F6:F36) ->  | G37: =SUM(G6:G36) -> 0 | J37: =SUM(J6:J36) ->  | K37: =SUM(K6:K36) -> 0 | L37: =SUM(L6:L36) ->  | O37: =SUM(O6:O36) ->  | P37: =P36+S36 ->  | Q37: =SUM(Q6:Q36) -> 3410 | R37: =SUM(R6:R36) -> 0 | T37: =SUM(T6:T36) ->  | U37: =SUM(U6:U36) -> 0 | V37: =SUM(V6:V36) ->  | W37: =W36 ->  | X37: =X36 -> 110 | Y37: =Y36 ->  | Z37: =J37*COSTPCHILDUPS ->  | AA37: 0 | AB37: =SUM(Z37:AA37) ->  | AD37: =SUM(AD6:AD36) -> 0 | AE37: =SUM(AE6:AE36) -> 0
A39: RICE ACCOUNT
A40: RICE OPENING BALANCE | F40: RICE RECEIVED DURING THE MONTH | J40: TOTAL RICE | N40: RICE UTILIZED DURING MONTH | R40: BALANCE RICE | T40: UPS AMOUNT | V40: HS AMOUNT | X40: UPS ROUNDED AMOUNT | Z40: HS ROUNDED AMOUNT | AB40: TOTAL AMOUNT | AE40: REMARKS
A41: =UPSBALANCE+HSBALANCE -> 230 | F41: =V37 ->  | J41: =SUM(A41:I41) ->  | N41: =O37+R37 ->  | R41: =J41-N41 ->  | T41: =Z37 ->  | V41: =AA37 -> 0 | X41: =ROUND(T41,0) ->  | Z41: =ROUND(V41,0) -> 0 | AB41: =SUM(X41:AA41) -> 
AF45: ఆలుగడ్డ టమాట
AF46: గుడ్డు+సాంబారు
AF47: అరటిపండు+సాంబారు
AF48: వంకాయ+ఆలుగడ్డ
AF49: సోరకాయ పప్పు
AF50: గుడ్డు+సాంబారు
AF51: బీరకాయ టమాట
AF52: వంకాయ+ఆలుగడ్డ
AA53: వంకాయ పప్పు | AF53: గుడ్డు+సాంబారు
AF54: పప్పుచారు
AF55: సోరకాయ పప్పు
AF56: గుడ్డు+సాంబారు
AF57: వంకాయ+ఆలుగడ్డ
AF58: బీరకాయ పప్పు
AF59: గుడ్డు+సాంబారు

Sheet MONTHLY (hidden)
A1: School Monthly Data for | F1: =#REF! -> 
A2: Instructions:
A3: 1.Keep Enrollment Register at the time of entry
A4: 2.Keep Account Register at the time of entry
A6: School Details
A7: School Code | B7: 1508611 | D7: School Name | F7: ZPHS GUNDLA POCHAMPALLY
A8: School Type | B8: ZP(LOCAL BODIES) | D8: Category | F8: HIGH SCHOOL
A9: State | B9: ANDHRA PRADESH | D9: District | F9: RANGA REDDY
A10: Area | B10: LAXMINAGAR | D10: Block | F10: MEDCHAL
A11: Village/Ward | B11: GUNDLAPOCHAMPALLY
A13: Meals Availed Status*
D14: Primary | G14: Upper Primary
A15: Number of School Days During Month | G15: 15
A16: Actual Number of Days Mid Day Meal Served | G16: =#REF! -> 
A17: Total Meals Served During the Month | G17: =#REF! -> 
A19: Cook Cum Helper Details
A20: Name | C20: Gender | D20: Category | F20: Mode Of Payment | H20: Amount Received during the month(In Rs)
A21: S.PRASANNA KUMARI | C21: FEMALE | D21: OBC | F21: BANK | H21: 1000
A22: C.NARSIMHA | C22: MALE | D22: OBC | F22: BANK | H22: 1000
A26: Cooking Cost(In Rs.)
A27: Primary | E27: Upper Primary
A28: Opening Balance | B28: Received during the Month | C28: Expenditure during the Month | D28: Closing Balance | E28: Opening Balance | F28: Received during the Month | H28: Expenditure during the Month | I28: Closing Balance
A29: -- | B29: -- | C29: -- | D29: -- | E29: 0 | F29: =#REF! ->  | H29: =#REF! ->  | I29: 0
A31: Details of Foodgrain (In Quintals)
A32: Primary | F32: Upper Primary
A33: Food Item | B33: Opening Balance | C33: Received during the Month | D33: Consumption during the Month | E33: Closing Balance | F33: Food Item | G33: Opening Balance | H33: Received during the Month | I33: Consumption during the Month | J33: Closing Balance
A34: Wheat | B34: -- | C34: -- | D34: -- | E34: -- | F34: Wheat | G34: -- | H34: -- | I34: -- | J34: --
A35: Rice | B35: -- | C35: -- | D35: -- | E35: -- | F35: Rice | G35: =#REF! ->  | H35: =#REF! ->  | I35: =#REF! &"+" &#REF! & "=" &#REF! ->  | J35: =#REF! -> 
G36: REMARKS:
A37: School Expenses (In Rs.)
C38: Total Expenditure | E38: Date of Expenditure | G38: Cumulative Expenditure at School
A39: 1. MME Expenses
A41: School Inspection
A42: School Inspection (Yes) \ (No)
A43: Name | E43: In Number
A44: By Member of Task Force | E44: 0
A45: By District Officials | E45: 0
A46: By Block/Taluka Level Official | E46: 1
A47: By SMC Members | E47: 2
A49: Untoward Incidents (If Any)
A50: Number of Incident Occured | E50: 0

Sheet PRINTS==> (hidden)

Sheet RICE ACCOUNT-BKP (hidden)
A1: MID-DAY MEALS PROGRAMME - RICE ACCOUNT
A2: MANDAL | B2: =MANDAL -> XYZ | F2: SCHOOL | H2: =SCHOOL -> ZPHS ABC | L2: MONTH | N2: =MONTH -> 43831
A3: DATE | B3: OPENING BALANCE | F3: RICE RECEIVED | K3: RICE UTILIZED | N3: GROUND BALANCE
B4: UPS | C4: HS | D4: TOTAL | F4: UPS | G4: HS | H4: TOTAL | K4: UPS | L4: HS | M4: TOTAL | N4: UPS | O4: HS | P4: TOTAL
A5: 1 | B5: ='PRIMARY INFORMATION'!$C$10 -> 120 | C5: ='PRIMARY INFORMATION'!$C$11 -> 110 | D5: =SUM(B5:C5) -> 230 | H5: =SUM(F5:G5) -> 0 | K5: =#REF! ->  | L5: ='9-10-MDM&EGG'!#REF! ->  | M5: =SUM(K5:L5) ->  | N5: =B5+F5-K5 ->  | O5: =C5+G5-L5 ->  | P5: =SUM(N5:O5) -> 
A6: 2 | B6: =N5 ->  | D6: =SUM(B6:C6) ->  | H6: =SUM(F6:G6) -> 0 | K6: =#REF! ->  | L6: ='9-10-MDM&EGG'!#REF! ->  | M6: =SUM(K6:L6) ->  | N6: =B6+F6-K6 ->  | O6: =C6+G6-L6 ->  | P6: =SUM(N6:O6) -> 
A7: 3 | D7: =SUM(B7:C7) ->  | H7: 0 | K7: =#REF! ->  | L7: ='9-10-MDM&EGG'!#REF! ->  | N7: =B7+F7-K7 -> 
A8: 4 | H8: 0 | K8: =#REF! ->  | L8: ='9-10-MDM&EGG'!#REF! -> 
A9: 5 | H9: 0 | K9: =#REF! ->  | L9: ='9-10-MDM&EGG'!#REF! -> 
A10: 6 | H10: 0 | K10: =#REF! ->  | L10: ='9-10-MDM&EGG'!#REF! -> 
A11: 7 | H11: 0 | K11: =#REF! ->  | L11: ='9-10-MDM&EGG'!#REF! -> 
A12: 8 | H12: 0 | K12: =#REF! ->  | L12: ='9-10-MDM&EGG'!#REF! -> 
A13: 9 | H13: 0 | K13: =#REF! ->  | L13: ='9-10-MDM&EGG'!#REF! -> 
A14: 10 | H14: 0 | K14: =#REF! ->  | L14: ='9-10-MDM&EGG'!#REF! -> 
A15: 11 | H15: 0 | K15: =#REF! ->  | L15: ='9-10-MDM&EGG'!#REF! -> 
A16: 12 | H16: 0 | K16: =#REF! ->  | L16: ='9-10-MDM&EGG'!#REF! -> 
A17: 13 | H17: 0 | K17: =#REF! ->  | L17: ='9-10-MDM&EGG'!#REF! -> 
A18: 14 | H18: 0 | K18: =#REF! ->  | L18: ='9-10-MDM&EGG'!#REF! -> 
A19: 15 | H19: 0 | K19: =#REF! ->  | L19: ='9-10-MDM&EGG'!#REF! -> 
A20: 16 | H20: 0 | K20: =#REF! ->  | L20: ='9-10-MDM&EGG'!#REF! -> 
A21: 17 | H21: 0 | K21: =#REF! ->  | L21: ='9-10-MDM&EGG'!#REF! -> 
A22: 18 | B22: =N21 ->  | H22: 0 | K22: =#REF! ->  | L22: ='9-10-MDM&EGG'!#REF! -> 
A23: 19 | H23: 0 | K23: =#REF! ->  | L23: ='9-10-MDM&EGG'!#REF! -> 
A24: 20 | H24: 0 | K24: =#REF! ->  | L24: ='9-10-MDM&EGG'!#REF! -> 
A25: 21 | H25: 0 | K25: =#REF! ->  | L25: ='9-10-MDM&EGG'!#REF! -> 
A26: 22 | H26: 0 | K26: =#REF! ->  | L26: ='9-10-MDM&EGG'!#REF! -> 
A27: 23 | H27: 0 | K27: =#REF! ->  | L27: ='9-10-MDM&EGG'!#REF! -> 
A28: 24 | H28: 0 | K28: =#REF! ->  | L28: ='9-10-MDM&EGG'!#REF! -> 
A29: 25 | H29: 0 | K29: =#REF! ->  | L29: ='9-10-MDM&EGG'!#REF! -> 
A30: 26 | H30: 0 | K30: =#REF! ->  | L30: ='9-10-MDM&EGG'!#REF! -> 
A31: 27 | H31: 0 | K31: =#REF! ->  | L31: ='9-10-MDM&EGG'!#REF! -> 
A32: 28 | H32: 0 | K32: =#REF! ->  | L32: ='9-10-MDM&EGG'!#REF! -> 
A33: 29 | H33: 0 | K33: =#REF! ->  | L33: ='9-10-MDM&EGG'!#REF! -> 
A34: 30 | H34: 0 | K34: =#REF! ->  | L34: ='9-10-MDM&EGG'!#REF! -> 
A35: 31 | H35: 0 | K35: =#REF! ->  | L35: ='9-10-MDM&EGG'!#REF! -> 
F36: =SUM(F5:F35) -> 0 | G36: =SUM(G5:G35) -> 0 | H36: =SUM(F36:G36) -> 0 | K36: =SUM(K5:K35) ->  | L36: =SUM(L5:L35) ->  | M36: =SUM(K36:L36) -> 

Sheet 9-10-BKP (hidden)
A1: MID-DAY MEALS PROGRAMME | R1: HS
A2: MANDAL : | C2: =MANDAL -> XYZ | E2: SCHOOL : | G2: =SCHOOL -> ZPHS ABC | M2: MONTH : | O2: =MONTH -> 2020-01-01 | V2: BALANCE | W2: ='PRIMARY INFORMATION'!$C$11 -> 110
A3: NAME OF THE IA : | E3: =GROUP -> ABCDEF | K3: A/c No.: | N3: =ACCNO -> 1324678911
A4: DAY | B4: No. of Children Enrolled | E4: TOTAL | F4: No. of Children attended | I4: TOTAL | J4: No. of Children Feeded | M4: TOTAL | N4: COST PER CHILD | O4: Net Amount | R4: TOTAL | U4: RISE USED | V4: RICE BALANCE | W4: RICE RECEIVED
B5: 1 TO 5 | C5: 6 TO 8 | F5: 1 TO 5 | G5: 6 TO 8 | J5: 1 TO 5 | K5: 6 TO 8 | O5: 1 TO 5 | P5: 6 TO 8 | Q5: 9 TO 10
A6: =#REF! ->  | B6: =IF(LEN(#REF!)=0,"",#REF!) ->  | D6: 159 | E6: =SUM(B6:D6) ->  | I6: =SUM(F6:H6) -> 0 | M6: =SUM(J6:L6) -> 0 | N6: 6 | Q6: =M6*N6 -> 0 | R6: =SUM(O6:Q6) -> 0 | U6: =M6*150/1000 -> 0 | V6: =($W$2)-U6 -> 110
A7: =#REF! ->  | B7: =IF(LEN(#REF!)=0,"",#REF!) ->  | D7: =D6 -> 159 | E7: =SUM(B7:D7) ->  | I7: =SUM(F7:H7) -> 0 | M7: =SUM(J7:L7) -> 0 | N7: 6 | Q7: =M7*N7 -> 0 | R7: =SUM(O7:Q7) -> 0 | U7: =M7*150/1000 -> 0 | V7: =(V6+W6)-U7 -> 110
A8: =#REF! ->  | B8: =IF(LEN(#REF!)=0,"",#REF!) ->  | D8: =D7 -> 159 | I8: 0 | M8: 0 | N8: 6 | Q8: =M8*N8 -> 0 | R8: =SUM(O8:Q8) -> 0 | U8: 0 | V8: =(V7+W7)-U8 -> 110
A9: =#REF! ->  | B9: =IF(LEN(#REF!)=0,"",#REF!) ->  | D9: 159 | I9: 0 | M9: 0 | N9: 6 | Q9: 0 | R9: =SUM(O9:Q9) -> 0 | U9: 0 | V9: 110
A10: =#REF! ->  | B10: =IF(LEN(#REF!)=0,"",#REF!) ->  | D10: 159 | I10: 0 | M10: 0 | N10: 6 | Q10: 0 | R10: =SUM(O10:Q10) -> 0 | U10: 0 | V10: 110
A11: =#REF! ->  | B11: =IF(LEN(#REF!)=0,"",#REF!) ->  | D11: 159 | I11: 0 | M11: 0 | N11: 6 | Q11: 0 | R11: 0 | U11: 0 | V11: 110
A12: =#REF! ->  | B12: =IF(LEN(#REF!)=0,"",#REF!) ->  | D12: 159 | I12: 0 | M12: 0 | N12: 6 | Q12: 0 | R12: 0 | U12: 0 | V12: 110
A13: =#REF! ->  | B13: =IF(LEN(#REF!)=0,"",#REF!) ->  | D13: 159 | I13: 0 | M13: 0 | N13: 6 | Q13: 0 | R13: 0 | U13: 0 | V13: 110
A14: =#REF! ->  | B14: =IF(LEN(#REF!)=0,"",#REF!) ->  | D14: 159 | I14: 0 | M14: 0 | N14: 6 | Q14: 0 | R14: 0 | U14: 0 | V14: 110
A15: =#REF! ->  | B15: =IF(LEN(#REF!)=0,"",#REF!) ->  | D15: 159 | I15: 0 | M15: 0 | N15: 6 | Q15: 0 | R15: 0 | U15: 0 | V15: 110
A16: =#REF! ->  | B16: =IF(LEN(#REF!)=0,"",#REF!) ->  | D16: 159 | I16: 0 | M16: 0 | N16: 6 | Q16: 0 | R16: 0 | U16: 0 | V16: 110
A17: =#REF! ->  | B17: =IF(LEN(#REF!)=0,"",#REF!) ->  | D17: 159 | I17: 0 | M17: 0 | N17: 6 | Q17: 0 | R17: 0 | U17: 0 | V17: 110
A18: =#REF! ->  | B18: =IF(LEN(#REF!)=0,"",#REF!) ->  | D18: 159 | I18: 0 | M18: 0 | N18: 6 | Q18: 0 | R18: 0 | U18: 0 | V18: 110
A19: =#REF! ->  | B19: =IF(LEN(#REF!)=0,"",#REF!) ->  | D19: 159 | I19: 0 | M19: 0 | N19: 6 | Q19: 0 | R19: 0 | U19: 0 | V19: 110
A20: =#REF! ->  | B20: =IF(LEN(#REF!)=0,"",#REF!) ->  | D20: 159 | I20: 0 | M20: 0 | N20: 6 | Q20: 0 | R20: 0 | U20: 0 | V20: 110
A21: =#REF! ->  | B21: =IF(LEN(#REF!)=0,"",#REF!) ->  | D21: 159 | I21: 0 | M21: 0 | N21: 6 | Q21: 0 | R21: 0 | U21: 0 | V21: 110
A22: =#REF! ->  | B22: =IF(LEN(#REF!)=0,"",#REF!) ->  | D22: 159 | I22: 0 | M22: 0 | N22: 6 | Q22: 0 | R22: 0 | U22: 0 | V22: 110
A23: =#REF! ->  | B23: =IF(LEN(#REF!)=0,"",#REF!) ->  | D23: 159 | I23: 0 | M23: 0 | N23: 6 | Q23: 0 | R23: 0 | U23: 0 | V23: 110
A24: =#REF! ->  | B24: =IF(LEN(#REF!)=0,"",#REF!) ->  | D24: 159 | I24: 0 | M24: 0 | N24: 6 | Q24: 0 | R24: 0 | U24: 0 | V24: 110
A25: =#REF! ->  | B25: =IF(LEN(#REF!)=0,"",#REF!) ->  | D25: 159 | I25: 0 | M25: 0 | N25: 6 | Q25: 0 | R25: 0 | U25: 0 | V25: 110
A26: =#REF! ->  | B26: =IF(LEN(#REF!)=0,"",#REF!) ->  | D26: 159 | I26: 0 | M26: 0 | N26: 6 | Q26: 0 | R26: 0 | U26: 0 | V26: 110
A27: =#REF! ->  | B27: =IF(LEN(#REF!)=0,"",#REF!) ->  | D27: 159 | I27: 0 | M27: 0 | N27: 6 | Q27: 0 | R27: 0 | U27: 0 | V27: 110
A28: =#REF! ->  | B28: =IF(LEN(#REF!)=0,"",#REF!) ->  | D28: 159 | I28: 0 | M28: 0 | N28: 6 | Q28: 0 | R28: 0 | U28: 0 | V28: 110
A29: =#REF! ->  | B29: =IF(LEN(#REF!)=0,"",#REF!) ->  | D29: 159 | I29: 0 | M29: 0 | N29: 6 | Q29: 0 | R29: 0 | U29: 0 | V29: 110
A30: =#REF! ->  | B30: =IF(LEN(#REF!)=0,"",#REF!) ->  | D30: 159 | I30: 0 | M30: 0 | N30: 6 | Q30: 0 | R30: 0 | U30: 0 | V30: 110
A31: =#REF! ->  | B31: =IF(LEN(#REF!)=0,"",#REF!) ->  | D31: 159 | I31: 0 | M31: 0 | N31: 6 | Q31: 0 | R31: 0 | U31: 0 | V31: 110
A32: =#REF! ->  | B32: =IF(LEN(#REF!)=0,"",#REF!) ->  | D32: 159 | I32: 0 | M32: 0 | N32: 6 | Q32: 0 | R32: 0 | U32: 0 | V32: 110
A33: =#REF! ->  | B33: =IF(LEN(#REF!)=0,"",#REF!) ->  | D33: 159 | I33: 0 | M33: 0 | N33: 6 | Q33: 0 | R33: 0 | U33: 0 | V33: 110
A34: =#REF! ->  | B34: =IF(LEN(#REF!)=0,"",#REF!) ->  | D34: 159 | I34: 0 | M34: 0 | N34: 6 | Q34: 0 | R34: 0 | U34: 0 | V34: 110
A35: =#REF! ->  | B35: =IF(LEN(#REF!)=0,"",#REF!) ->  | D35: 159 | I35: 0 | M35: 0 | N35: 6 | Q35: 0 | R35: 0 | U35: 0 | V35: 110
A36: =#REF! ->  | B36: =IF(LEN(#REF!)=0,"",#REF!) ->  | D36: 159 | I36: 0 | M36: 0 | N36: 6 | Q36: 0 | R36: 0 | U36: 0 | V36: 110
A37: Total | I37: =SUM(I6:I36) -> 0 | M37: =SUM(M6:M36) -> 0 | N37: 6 | Q37: =SUM(Q6:Q36) -> 0 | R37: =SUM(R6:R36) -> 0 | U37: 0 | V37: 110
Q38: =ROUND(R37,0) -> 0
A39: Rice Account
A40: Opening Balance | D40: Received during Month | G40: Total Rice | J40: Utilised during Month | M40: Balance Rice | Q40: No. of Children Took MDM
A41: =W2 -> 110 | D41: ='RICE ACCOUNT'!$G$37 -> 0 | G41: =SUM(A41:F41) -> 110 | J41: =U37 -> 0 | M41: =G41-J41 -> 110
B42: No. of Children took MDM : | H42: =$M$37 -> 0 | J42: Total Amount(Rounded):Rs. | O42: =$Q$38 -> 0
A43: Sign. Of the Implementing Agency | N43: Sign. Of the Head Master
H46: Mandal Educational Officer

Sheet QUARTERLY (hidden)
A1: School Level Health Data for | C1: (Feb-15, Mar-15 & April-15)
A2: Instructions:
A3: 1.Keep Enrollment Register at the time of entry
A4: 2.Keep Account Register at the time of entry
A5: School Details
A6: School Code | B6: 1508611 | C6: School Name | D6: ZPHS GUNDLA POCHAMPALLY
A7: School Type | B7: ZP(LOCAL BODIES) | C7: Category | D7: HIGH SCHOOL
A8: State | B8: ANDHRA PRADESH | C8: District | D8: RANGA REDDY
A9: Area | B9: LAXMINAGAR | C9: Block | D9: MEDCHAL
A10: Village/Ward | B10: GUNDLAPOCHAMPALLY
A12: Number of Children weight measured
B13: Primary | C13: Upper Primary
A14: Boys | C14: 102
A15: Girls | C15: 117
A17: Number of Children height measured
B18: Primary | C18: Upper Primary
A19: Boys | C19: =C14 -> 102
A20: Girls | C20: =C15 -> 117
A22: Number of children with refractive errors
B23: Primary | C23: Upper Primary
A24: Number of Children diagnosed with refractive errors | C24: 32
A25: Number of Children provided spectacles | C25: 0
A27: Number of Children with Health Problems detected during School Health Checkup
B28: Primary | C28: Upper Primary
A29: Number of Children Problems treated during School Health Checkup | C29: 0
A30: Number of Children Problems detected during School Health Checkup and were referred | C30: 0
A32: Distribution of Iron & Folic Acid, Deworming, Vitamin-A supplementation
B33: Primary | C33: Upper Primary
A34: Number of Children received weekly Iron and Folic acid tablets in the last 3 months | C34: 0
A35: Number of children received deworming tablets | C35: 0
A36: Number of children received Vitamin-A supplementation | C36: 0

Sheet UPSBILL (hidden)
A2: ="MID-DAY MEALS VOUCHER FOR THE MONTH OF " & MONTH -> MID-DAY MEALS VOUCHER FOR THE MONTH OF 43831
A3: =SCHOOL -> ZPHS ABC | G3: =#REF! -> 
A5: SLNO | B5: ITEM | C5: RATE | D5: QUANTITY | E5: AMOUNT
A6: 1 | B6: కందిపప్పు | C6: 125 | D6: 24 | E6: =C6*D6 -> 3000
A7: 2 | B7: చింతపండు | C7: 100 | D7: 8 | E7: =C7*D7 -> 800
A8: 3 | B8: మంచినూనె | C8: 110 | D8: 11 | E8: 1210
A9: 4 | B9: ఉప్పు ప్యాకెట్ | C9: 14 | D9: 10 | E9: 140
A10: 5 | B10: కారం | C10: 200 | D10: 3 | E10: 600
A11: 6 | B11: పసుపు | C11: 225 | D11: 1 | E11: 225
A12: 7 | B12: ఆవాలు | C12: 100 | D12: 2 | E12: 200
A13: 8 | B13: జిలకర | C13: 250 | D13: 2 | E13: 500
A14: 9 | B14: ఎండుమిర్చి | C14: 80 | D14: 2 | E14: 160
A15: 10 | B15: సాంబార్ పొడి ప్యాకెట్స్ | C15: 30 | D15: 10 | E15: 300
A16: 11 | B16: అల్లం, వెల్లుల్ల్లి | C16: 50 | D16: 5 | E16: 250
A17: 12 | B17: కూరగాయలు | C17: 1200 | D17: 1 | E17: 1200
A18: 13 | B18: గుడ్లు | C18: 4 | D18: 420 | E18: 1680
A19: 14 | B19: కట్టెలు | C19: 1000 | D19: 1 | E19: 1000
A20: TOTAL | E20: =SUM(E6:E19) -> 11265
B21: =rswords(E20) -> Rupees Eleven Thousand Two Hundred Sixty Five Only
A25: Signature of the IA | D25: Head Master

Sheet HSSBILL (hidden)
A1: ="MID-DAY MEALS VOUCHER FOR THE MONTH OF " & MONTH -> MID-DAY MEALS VOUCHER FOR THE MONTH OF 43831
A2: =SCHOOL -> ZPHS ABC
H3: ='9-10-MDM&EGG'!$H$37 -> 0
A4: SLNO | B4: ITEM | C4: RATE | D4: QUANTITY | E4: AMOUNT | F4: =UPSBILL!C5 -> RATE
A5: 1 | B5: కందిపప్పు | C5: 125 | D5: 15 | E5: =C5*D5 -> 1875 | K5: =UPSBILL!C5 -> RATE | L5: =UPSBILL!D5 -> QUANTITY | M5: =UPSBILL!E5 -> AMOUNT
A6: 2 | B6: చింతపండు | C6: 100 | D6: 5 | E6: =C6*D6 -> 500 | K6: =UPSBILL!C6 -> 125 | L6: =UPSBILL!D6 -> 24 | M6: =UPSBILL!E6 -> 3000
A7: 3 | B7: మంచినూనె | C7: 110 | D7: 5 | E7: 550 | K7: =UPSBILL!C7 -> 100 | L7: =UPSBILL!D7 -> 8 | M7: =UPSBILL!E7 -> 800
A8: 4 | B8: ఉప్పు ప్యాకెట్ | C8: 14 | D8: 8 | E8: 112 | K8: =UPSBILL!C8 -> 110 | L8: =UPSBILL!D8 -> 11 | M8: =UPSBILL!E8 -> 1210
A9: 5 | B9: కారం | C9: 200 | D9: 1 | E9: 200 | K9: =UPSBILL!C9 -> 14 | L9: =UPSBILL!D9 -> 10 | M9: =UPSBILL!E9 -> 140
A10: 6 | B10: పసుపు | C10: 225 | D10: 1 | E10: 225 | K10: =UPSBILL!C10 -> 200 | L10: =UPSBILL!D10 -> 3 | M10: =UPSBILL!E10 -> 600
A11: 7 | B11: ఆవాలు | C11: 100 | D11: 1 | E11: 100 | K11: =UPSBILL!C11 -> 225 | L11: =UPSBILL!D11 -> 1 | M11: =UPSBILL!E11 -> 225
A12: 8 | B12: జిలకర | C12: 250 | D12: 1 | E12: 250 | K12: =UPSBILL!C12 -> 100 | L12: =UPSBILL!D12 -> 2 | M12: =UPSBILL!E12 -> 200
A13: 9 | B13: ఎండుమిర్చి | C13: 80 | D13: 1 | E13: 80 | K13: =UPSBILL!C13 -> 250 | L13: =UPSBILL!D13 -> 2 | M13: =UPSBILL!E13 -> 500
A14: 10 | B14: సాంబార్ పొడి ప్యాకెట్స్ | C14: 30 | D14: 10 | E14: 300 | K14: =UPSBILL!C14 -> 80 | L14: =UPSBILL!D14 -> 2 | M14: =UPSBILL!E14 -> 160
A15: 11 | B15: అల్లం, వెల్లుల్ల్లి | C15: 50 | D15: 2 | E15: 100 | K15: =UPSBILL!C15 -> 30 | L15: =UPSBILL!D15 -> 10 | M15: =UPSBILL!E15 -> 300
A16: 12 | B16: కూరగాయలు | C16: 1000 | D16: 1 | E16: 1000 | K16: =UPSBILL!C16 -> 50 | L16: =UPSBILL!D16 -> 5 | M16: =UPSBILL!E16 -> 250
A17: 13 | B17: గుడ్లు | C17: 4 | D17: 300 | E17: 1200 | K17: =UPSBILL!C17 -> 1200 | L17: =UPSBILL!D17 -> 1 | M17: =UPSBILL!E17 -> 1200
A18: 14 | B18: కట్టెలు | C18: 1000 | D18: 1 | E18: 1000 | K18: =UPSBILL!C18 -> 4 | L18: =UPSBILL!D18 -> 420 | M18: =UPSBILL!E18 -> 1680
A19: TOTAL | E19: =SUM(E5:E18) -> 7492 | K19: =UPSBILL!C19 -> 1000 | L19: =UPSBILL!D19 -> 1 | M19: =UPSBILL!E19 -> 1000
A20: =rswords(E19) -> Rupees Seven Thousand Four Hundred Ninety Two Only
A25: Signature of the IA | D25: Head Master

Sheet RICE BALANC (hidden)
A4: RICE BALANCE ABSTRACT
A7: UPS | B7: HS | C7: TOTAL
A8: ='RICE ACCOUNT'!$N$36 -> 120 | B8: ='RICE ACCOUNT'!$O$36 -> 110 | C8: =SUM(A8:B8) -> 230
A10: UPS AMOUNT | B10: =#REF! -> 
A11: HS AMOUNT | B11: ='9-10-MDM&EGG'!$H$37 -> 0
A12: TOTAL AMOUNT | B12: =SUM(B10:B11) -> 
